Workbook

Sheet TÉZE
B23: (zdroj: Wikipedia)

Sheet List1 (hidden)
A1: DATE | B1: CLOSE
A2: 2011-04-15 | B2: 0.7993 | C2: 0.7632028044 | D2: 0.8009971956 | E2: 0 | F2: 0 | G2: 0 | H2: 0
A3: 2011-04-18 | B3: 0.7897 | C3: 0.7675306 | D3: 0.8010294 | E3: 0 | F3: 0 | G3: 0 | H3: 0
A4: 2011-04-19 | B4: 0.7878 | C4: 0.7733947287 | D4: 0.7991052713 | E4: 0 | F4: 0 | G4: 0 | H4: 0
A5: 2011-04-20 | B5: 0.7944 | C5: 0.7746325828 | D5: 0.8006874172 | E5: 0 | F5: 0 | G5: 0 | H5: 0
A6: 2011-04-21 | B6: 0.8018 | C6: 0.7761335595 | D6: 0.8038864405 | E6: 0 | F6: 0 | G6: 0 | H6: 0
A7: 2011-04-22 | B7: 0.802 | C7: 0.7777279191 | D7: 0.8063720809 | E7: 0 | F7: 0 | G7: 0 | H7: 0
A8: 2011-04-25 | B8: 0.7998 | C8: 0.7820218405 | D8: 0.8061981595 | E8: 0 | F8: 0 | G8: 0 | H8: 0
A9: 2011-04-26 | B9: 0.8069 | C9: 0.7840155514 | D9: 0.8087244486 | E9: 0 | F9: 0 | G9: 0 | H9: 0
A10: 2011-04-27 | B10: 0.8078 | C10: 0.7853267238 | D10: 0.8112132762 | E10: 0 | F10: 0 | G10: 0 | H10: 0
A11: 2011-04-28 | B11: 0.8016 | C11: 0.7865060482 | D11: 0.8117139518 | E11: 0 | F11: 0 | G11: 0 | H11: 0
A12: 2011-04-29 | B12: 0.8096 | C12: 0.7860468243 | D12: 0.8142331757 | E12: 0 | F12: 0 | G12: 0 | H12: 0
A13: 2011-05-02 | B13: 0.8078 | C13: 0.7890897512 | D13: 0.8148102488 | E13: 0 | F13: 0 | G13: 0 | H13: 0
A14: 2011-05-03 | B14: 0.7986 | C14: 0.7938039282 | D14: 0.8122560718 | E14: 0 | F14: 0 | G14: 0 | H14: 0
A15: 2011-05-04 | B15: 0.791 | C15: 0.792071356 | D15: 0.813308644 | E15: 1 | F15: 0 | G15: 0 | H15: 0
A16: 2011-05-05 | B16: 0.7824 | C16: 0.7845617944 | D16: 0.8169382056 | E16: 1 | F16: 0 | G16: 1 | H16: 0
A17: 2011-05-06 | B17: 0.7899 | C17: 0.7821427129 | D17: 0.8169372871 | E17: 0 | F17: 0 | G17: 0 | H17: 0
A18: 2011-05-09 | B18: 0.7943 | C18: 0.781314831 | D18: 0.816665169 | E18: 0 | F18: 0 | G18: 0 | H18: 0
A19: 2011-05-10 | B19: 0.7937 | C19: 0.7805934547 | D19: 0.8147465453 | E19: 0 | F19: 0 | G19: 0 | H19: 0
A20: 2011-05-11 | B20: 0.7885 | C20: 0.7793297105 | D20: 0.8121502895 | E20: 0 | F20: 0 | G20: 0 | H20: 0
A21: 2011-05-12 | B21: 0.7957 | C21: 0.7792072901 | D21: 0.8110927099 | E21: 0 | F21: 0 | G21: 0 | H21: 0
A22: 2011-05-13 | B22: 0.7876 | C22: 0.779755683 | D22: 0.806144317 | E22: 0 | F22: 0 | G22: 0 | H22: 0
A23: 2011-05-16 | B23: 0.7826 | C23: 0.7802649422 | D23: 0.8005950578 | E23: 0 | F23: 0 | G23: 0 | H23: 0
A24: 2011-05-17 | B24: 0.7834 | C24: 0.7795742836 | D24: 0.7982457164 | E24: 0 | F24: 0 | G24: 0 | H24: 0
A25: 2011-05-18 | B25: 0.7873 | C25: 0.7792719042 | D25: 0.7978080958 | E25: 0 | F25: 0 | G25: 0 | H25: 0
A26: 2011-05-19 | B26: 0.7898 | C26: 0.7809575965 | D26: 0.7976024035 | E26: 0 | F26: 0 | G26: 0 | H26: 0
A27: 2011-05-20 | B27: 0.7964 | C27: 0.7805653644 | D27: 0.7992946356 | E27: 0 | F27: 0 | G27: 0 | H27: 0
A28: 2011-05-23 | B28: 0.7916 | C28: 0.7806665802 | D28: 0.7986534198 | E28: 0 | F28: 0 | G28: 0 | H28: 0
A29: 2011-05-24 | B29: 0.7971 | C29: 0.7802004082 | D29: 0.7997995918 | E29: 0 | F29: 0 | G29: 0 | H29: 0
A30: 2011-05-25 | B30: 0.799 | C30: 0.7799539647 | D30: 0.8021460353 | E30: 0 | F30: 0 | G30: 0 | H30: 0
A31: 2011-05-26 | B31: 0.811 | C31: 0.7763223741 | D31: 0.8088376259 | E31: 0 | F31: 1 | G31: 0 | H31: 0
A32: 2011-05-27 | B32: 0.8176 | C32: 0.7739284319 | D32: 0.8172315681 | E32: 0 | F32: 1 | G32: 0 | H32: 1
A33: 2011-05-30 | B33: 0.816 | C33: 0.7760384266 | D33: 0.8218015734 | E33: 0 | F33: 0 | G33: 0 | H33: 0
A34: 2011-05-31 | B34: 0.8229 | C34: 0.7784809779 | D34: 0.8272590221 | E34: 0 | F34: 0 | G34: 0 | H34: 0
A35: 2011-06-01 | B35: 0.8158 | C35: 0.7826497074 | D35: 0.8287902926 | E35: 0 | F35: 0 | G35: 0 | H35: 0
A36: 2011-06-02 | B36: 0.8167 | C36: 0.7871935064 | D36: 0.8296264936 | E36: 0 | F36: 0 | G36: 0 | H36: 0
A37: 2011-06-03 | B37: 0.8168 | C37: 0.7903513931 | D37: 0.8305486069 | E37: 0 | F37: 0 | G37: 0 | H37: 0
A38: 2011-06-06 | B38: 0.8143 | C38: 0.7969992367 | D38: 0.8284407633 | E38: 0 | F38: 0 | G38: 0 | H38: 0
A39: 2011-06-07 | B39: 0.8198 | C39: 0.8027839523 | D39: 0.8271960477 | E39: 0 | F39: 0 | G39: 0 | H39: 0
A40: 2011-06-08 | B40: 0.8148 | C40: 0.8105082841 | D40: 0.8226317159 | E40: 0 | F40: 0 | G40: 0 | H40: 0
A41: 2011-06-09 | B41: 0.8273 | C41: 0.8104695408 | D41: 0.8259304592 | E41: 0 | F41: 1 | G41: 0 | H41: 0
A42: 2011-06-10 | B42: 0.8221 | C42: 0.8105945671 | D42: 0.8267054329 | E42: 0 | F42: 0 | G42: 0 | H42: 0
A43: 2011-06-13 | B43: 0.8161 | C43: 0.8106175128 | D43: 0.8267024872 | E43: 0 | F43: 0 | G43: 0 | H43: 0
A44: 2011-06-14 | B44: 0.8186 | C44: 0.8106965811 | D44: 0.8257634189 | E44: 0 | F44: 0 | G44: 0 | H44: 0
A45: 2011-06-15 | B45: 0.8043 | C45: 0.8058230732 | D45: 0.8283369268 | E45: 1 | F45: 0 | G45: 0 | H45: 0
A46: 2011-06-16 | B46: 0.8035 | C46: 0.8018510964 | D46: 0.8296689036 | E46: 0 | F46: 0 | G46: 0 | H46: 0
A47: 2011-06-17 | B47: 0.8122 | C47: 0.8012554993 | D47: 0.8293445007 | E47: 0 | F47: 0 | G47: 0 | H47: 0
A48: 2011-06-20 | B48: 0.8091 | C48: 0.8002492602 | D48: 0.8293107398 | E48: 0 | F48: 0 | G48: 0 | H48: 0
A49: 2011-06-21 | B49: 0.8121 | C49: 0.7998126904 | D49: 0.8282073096 | E49: 0 | F49: 0 | G49: 0 | H49: 0
A50: 2011-06-22 | B50: 0.8162 | C50: 0.7998967898 | D50: 0.8284032102 | E50: 0 | F50: 0 | G50: 0 | H50: 0
A51: 2011-06-23 | B51: 0.8128 | C51: 0.8014614948 | D51: 0.8239385052 | E51: 0 | F51: 0 | G51: 0 | H51: 0
A52: 2011-06-24 | B52: 0.81 | C52: 0.8021081239 | D52: 0.8208718761 | E52: 0 | F52: 0 | G52: 0 | H52: 0
A53: 2011-06-27 | B53: 0.8062 | C53: 0.8011837776 | D53: 0.8198162224 | E53: 0 | F53: 0 | G53: 0 | H53: 0
A54: 2011-06-28 | B54: 0.8111 | C54: 0.8021052632 | D54: 0.8173947368 | E54: 0 | F54: 0 | G54: 0 | H54: 0
A55: 2011-06-29 | B55: 0.8243 | C55: 0.8010149173 | D55: 0.8224850827 | E55: 0 | F55: 1 | G55: 0 | H55: 0
A56: 2011-06-30 | B56: 0.8284 | C56: 0.8010450919 | D56: 0.8274349081 | E56: 0 | F56: 1 | G56: 0 | H56: 1
A57: 2011-07-01 | B57: 0.8282 | C57: 0.80034311 | D57: 0.83133689 | E57: 0 | F57: 0 | G57: 0 | H57: 0
A58: 2011-07-04 | B58: 0.8293 | C58: 0.801182782 | D58: 0.834537218 | E58: 0 | F58: 0 | G58: 0 | H58: 0
A59: 2011-07-05 | B59: 0.8257 | C59: 0.8024257629 | D59: 0.8360142371 | E59: 0 | F59: 0 | G59: 0 | H59: 0
A60: 2011-07-06 | B60: 0.8258 | C60: 0.803091103 | D60: 0.837268897 | E60: 0 | F60: 0 | G60: 0 | H60: 0
A61: 2011-07-07 | B61: 0.8329 | C61: 0.8043349279 | D61: 0.8400450721 | E61: 0 | F61: 0 | G61: 0 | H61: 0
A62: 2011-07-08 | B62: 0.8365 | C62: 0.8071429494 | D62: 0.8425370506 | E62: 0 | F62: 0 | G62: 0 | H62: 0
A63: 2011-07-11 | B63: 0.8287 | C63: 0.814444226 | D63: 0.839735774 | E63: 0 | F63: 0 | G63: 0 | H63: 0
A64: 2011-07-12 | B64: 0.8185 | C64: 0.8186121695 | D64: 0.8370478305 | E64: 1 | F64: 0 | G64: 0 | H64: 0
A65: 2011-07-13 | B65: 0.8357 | C65: 0.8189920042 | D65: 0.8389479958 | E65: 0 | F65: 0 | G65: 0 | H65: 0
A66: 2011-07-14 | B66: 0.8418 | C66: 0.8177365518 | D66: 0.8428834482 | E66: 0 | F66: 0 | G66: 0 | H66: 0
A67: 2011-07-15 | B67: 0.8455 | C67: 0.8166571004 | D67: 0.8474228996 | E67: 0 | F67: 0 | G67: 0 | H67: 0
A68: 2011-07-18 | B68: 0.844 | C68: 0.8167110834 | D68: 0.8503089166 | E68: 0 | F68: 0 | G68: 0 | H68: 0
A69: 2011-07-19 | B69: 0.856 | C69: 0.8159632753 | D69: 0.8571167247 | E69: 0 | F69: 0 | G69: 0 | H69: 0
A70: 2011-07-20 | B70: 0.8566 | C70: 0.8172530959 | D70: 0.8619869041 | E70: 0 | F70: 0 | G70: 0 | H70: 0
A71: 2011-07-21 | B71: 0.8625 | C71: 0.8169564483 | D71: 0.8682035517 | E71: 0 | F71: 0 | G71: 0 | H71: 0
A72: 2011-07-22 | B72: 0.864 | C72: 0.8171332555 | D72: 0.8735267445 | E72: 0 | F72: 0 | G72: 0 | H72: 0
A73: 2011-07-25 | B73: 0.865 | C73: 0.8209155781 | D73: 0.8770044219 | E73: 0 | F73: 0 | G73: 0 | H73: 0
A74: 2011-07-26 | B74: 0.8713 | C74: 0.8318016043 | D74: 0.8766783957 | E74: 0 | F74: 0 | G74: 0 | H74: 0
A75: 2011-07-27 | B75: 0.8692 | C75: 0.8373262491 | D75: 0.8778537509 | E75: 0 | F75: 0 | G75: 0 | H75: 0
A76: 2011-07-28 | B76: 0.869 | C76: 0.8420515335 | D76: 0.8785684665 | E76: 0 | F76: 0 | G76: 0 | H76: 0
A77: 2011-07-29 | B77: 0.8773 | C77: 0.8455832527 | D77: 0.8813967473 | E77: 0 | F77: 0 | G77: 0 | H77: 0
A78: 2011-08-01 | B78: 0.8766 | C78: 0.8527876936 | D78: 0.8807123064 | E78: 0 | F78: 0 | G78: 0 | H78: 0
A79: 2011-08-02 | B79: 0.8672 | C79: 0.8558789867 | D79: 0.8798610133 | E79: 0 | F79: 0 | G79: 0 | H79: 0
A80: 2011-08-03 | B80: 0.862 | C80: 0.858134028 | D80: 0.878685972 | E80: 0 | F80: 0 | G80: 0 | H80: 0
A81: 2011-08-04 | B81: 0.8408 | C81: 0.8468051447 | D81: 0.8856748553 | E81: 1 | F81: 0 | G81: 0 | H81: 0
A82: 2011-08-05 | B82: 0.843 | C82: 0.8401794992 | D82: 0.8881005008 | E82: 0 | F82: 0 | G82: 0 | H82: 0
A83: 2011-08-08 | B83: 0.8224 | C83: 0.8252662686 | D83: 0.8944937314 | E83: 1 | F83: 0 | G83: 0 | H83: 0
A84: 2011-08-09 | B84: 0.8091 | C84: 0.808686301 | D84: 0.898633699 | E84: 0 | F84: 0 | G84: 0 | H84: 0
A85: 2011-08-10 | B85: 0.8123 | C85: 0.7981624464 | D85: 0.8977775536 | E85: 0 | F85: 0 | G85: 0 | H85: 0
A86: 2011-08-11 | B86: 0.8309 | C86: 0.7955557039 | D86: 0.8927642961 | E86: 0 | F86: 0 | G86: 0 | H86: 0
A87: 2011-08-12 | B87: 0.8313 | C87: 0.7959184418 | D87: 0.8832015582 | E87: 0 | F87: 0 | G87: 0 | H87: 0
A88: 2011-08-15 | B88: 0.8325 | C88: 0.7991229824 | D88: 0.8711770176 | E88: 0 | F88: 0 | G88: 0 | H88: 0
A89: 2011-08-16 | B89: 0.8373 | C89: 0.8029512068 | D89: 0.8613687932 | E89: 0 | F89: 0 | G89: 0 | H89: 0
A90: 2011-08-17 | B90: 0.838 | C90: 0.8076786595 | D90: 0.8518413405 | E90: 0 | F90: 0 | G90: 0 | H90: 0
A91: 2011-08-18 | B91: 0.8213 | C91: 0.8065437921 | D91: 0.8490762079 | E91: 0 | F91: 0 | G91: 0 | H91: 0

Sheet NÁVOD

Sheet GRAF
A1: DATE | B1: CLOSE | C1: MIN | D1: MAX | E1: NZDUSD AVER 20D | F1: SM.ODCH | G1: LOW | H1: HIGH | M1: BUY | N1: =SUM(N13:N2611) -> 0.0656 | O1: SELL | P1: =SUM(P13:P2611) -> 0.1668 | Q1: =SUM(Q13:Q2611) -> 0.0656 | S1: =SUM(S13:S2611) -> 0.1505 | U1: =N1+P1 -> 0.2324 | V1: =MIN(V10:V2611) -> -0.2872 | W1: =MAX(W20:W2605) -> 941 | X1: DATE | Y1: =E1 -> NZDUSD AVER 20D | AJ1: profit (zisk k poslednímu dni) | AK1: drawdown (maximální pokles) | AL1: rentabilita za rok (profit/(drawdown*-2)/n) | AM1: dny mezi peaky | AN1: Ziskovost (∑ ziskových obchodů/∑ ztrátových obchodů *-1 | AO1: Korelace (vztah mezi ziskem a časem) | AQ1: AVER 10D | AR1: SM.ODCH. | AS1: AVER 20D | AT1: SM.ODCH
G2: 1.4 | H2: =G2 -> 1.4 | M2: -10 | N2: =IF(Z30=1,U1,IF(Z30=2,V1,IF(Z30=3,V3,IF(Z30=4,W1*-1,IF(Z30=5,O3012,IF(Z30=6,AA2614,0)))))) -> 0.2324 | O2: =M2 -> -10 | V2: =U1/V1*-1 -> 0.8091922006 | Y2: =U2 -> 0 | AA2: násobitel směrodatné odchylky: | AB2: =G2 -> 1.4 | AD2: limitní ztráta: | AE2: =M2 -> -10 | AJ2: =U1 -> 0.2324 | AK2: =V1 -> -0.2872 | AL2: =V3 -> 0.04045961003 | AM2: =W1 -> 941 | AN2: =O2622 ->  | AO2: =AA2614 -> 0.7864410394
A3: 2007-12-31 | B3: 0.7656 | C3: 0.7644 | D3: 0.7794 | V3: =U1/(2*V1*-1)/10 -> 0.04045961003 | X3: =A3 -> 2007-12-31 | Y3: 0 | AU3: 1
A4: 2008-01-01 | B4: 0.768 | C4: 0.7633 | D4: 0.7693 | X4: 2008-01-01 | Y4: 0 | AU4: =AU3+1 -> 2
A5: 2008-01-02 | B5: 0.775 | C5: 0.767 | D5: 0.776 | M5: zisk | N5: =U1 -> 0.2324 | X5: 2008-01-02 | Y5: 0 | AU5: =AU4+1 -> 3
A6: 2008-01-03 | B6: 0.7724 | C6: 0.7689 | D6: 0.779 | M6: drawdown | N6: =V1 -> -0.2872 | X6: 2008-01-03 | Y6: 0 | AU6: 4
A7: 2008-01-04 | B7: 0.7659 | C7: 0.7646 | D7: 0.7752 | M7: poměr | N7: =N5/N6*-1 -> 0.8091922006 | P7: =SUMIF(GRAF!AU3:AU3000,Q6,GRAF!A3:A3000) -> 0 | X7: 2008-01-04 | Y7: 0 | AU7: 5
A8: 2008-01-07 | B8: 0.7678 | C8: 0.7609 | D8: 0.7703 | M8: rentabilita | N8: =N5/(N6*-2)/10 -> 0.04045961003 | X8: 2008-01-07 | Y8: 0 | AU8: 6
A9: 2008-01-08 | B9: 0.7684 | C9: 0.7668 | D9: 0.7733 | M9: peak | N9: =W1 -> 941 | X9: 2008-01-08 | Y9: 0 | AU9: 7
A10: 2008-01-09 | B10: 0.7736 | C10: 0.7668 | D10: 0.7749 | M10: ziskovost | N10: =O3012 -> 1.33805668 | X10: 2008-01-09 | Y10: 0 | AU10: 8
A11: 2008-01-10 | B11: 0.7854 | C11: 0.7728 | D11: 0.787 | M11: korelace | N11: =AA2614 -> 0.7864410394 | X11: 2008-01-10 | Y11: 0 | AU11: 9
A12: 2008-01-11 | B12: 0.7822 | C12: 0.7808 | D12: 0.7881 | X12: 2008-01-11 | Y12: 0 | AU12: 10
A13: 2008-01-14 | B13: 0.7886 | C13: 0.7792 | D13: 0.7916 | X13: 2008-01-14 | Y13: 0 | AU13: 11
A14: 2008-01-15 | B14: 0.7776 | C14: 0.7723 | D14: 0.7935 | X14: 2008-01-15 | Y14: =U14 -> 0 | AU14: 12
A15: 2008-01-16 | B15: 0.7682 | C15: 0.7639 | D15: 0.7809 | X15: 2008-01-16 | Y15: =U15 -> 0 | AM15: 2.7 | AU15: 13
A16: 2008-01-17 | B16: 0.7628 | C16: 0.762 | D16: 0.7765 | X16: 2008-01-17 | Y16: 0 | AU16: 14
A17: 2008-01-18 | B17: 0.7598 | C17: 0.7558 | D17: 0.7688 | X17: 2008-01-18 | Y17: 0 | AU17: 15
A18: 2008-01-21 | B18: 0.7405 | C18: 0.7395 | D18: 0.7619 | X18: 2008-01-21 | Y18: 0 | AU18: 16
A19: 2008-01-22 | B19: 0.7659 | C19: 0.7382 | D19: 0.7674 | X19: 2008-01-22 | Y19: 0 | AM19: -0.0015 | AU19: 17
A20: 2008-01-23 | B20: 0.7631 | C20: 0.7542 | D20: 0.7691 | X20: 2008-01-23 | Y20: 0 | AU20: 18
A21: 2008-01-24 | B21: 0.7743 | C21: 0.7611 | D21: 0.7752 | E21: 0.7697421053 | F21: 0.01023931103 | G21: =E21-G$2*F21 -> 0.7554070698 | H21: =E21+H$2*F21 -> 0.7840771407 | X21: 2008-01-24 | Y21: 0 | AQ21: =AVERAGE(B12:B21) -> 0.7683 | AR21: =STDEVP(B12:B21) -> 0.01279038702 | AS21: =AVERAGE(B2:B21) -> 0.7697421053 | AT21: =STDEVP(B2:B21) -> 0.01023931103 | AU21: 19
A22: 2008-01-25 | B22: 0.7677 | C22: 0.7658 | D22: 0.7748 | E22: 0.76964 | F22: 0.009989964965 | G22: 0.755654049 | H22: 0.783625951 | I22: =IF(B22<G21,1,0) -> 0 | J22: =IF(B22>H21,1,0) -> 0 | M22: =IF(L22=1,0,IF(AND(M21>0,R21<M$2),0,IF(AND(K22=1,K21=0,M21=0),B22,M21))) -> 0 | N22: =IF(AND(M21>0,M22=0),B22-M21,0) -> 0 | O22: =IF(K22=1,0,IF(AND(O21>0,T21<O$2),0,IF(AND(L22=1,L21=0,O21=0),B22,O21))) -> 0 | P22: =IF(AND(O22=0,O21>0),O21-B22,0) -> 0 | Q22: =IF(M22>0,B23-B22,0) -> 0 | R22: =IF(M22>0,Q22+R21,0) -> 0 | S22: =IF(O22>0,B22-B23,0) -> 0 | T22: =IF(O22>0,S22+T21,0) -> 0 | U22: =Q22+S22+U21 -> 0 | V22: =U22-MAX(U$14:U22) -> 0 | X22: 2008-01-25 | Y22: 0 | AQ22: =AVERAGE(B13:B22) -> 0.76685 | AR22: =STDEVP(B13:B22) -> 0.01192503669 | AS22: =AVERAGE(B3:B22) -> 0.76964 | AT22: =STDEVP(B3:B22) -> 0.009989964965 | AU22: 20
A23: 2008-01-28 | B23: 0.7776 | C23: 0.7662 | D23: 0.7791 | E23: 0.77024 | F23: 0.01008917241 | G23: 0.7561151586 | H23: 0.7843648414 | I23: 0 | J23: 0 | K23: =IF(I22+I23=2,1,0) -> 0 | L23: 0 | M23: 0 | N23: 0 | O23: 0 | P23: 0 | Q23: 0 | R23: 0 | S23: 0 | T23: 0 | U23: 0 | V23: =U23-MAX(U$14:U23) -> 0 | X23: 2008-01-28 | Y23: 0 | AQ23: 0.76575 | AR23: 0.01025897168 | AS23: 0.77024 | AT23: 0.01008917241 | AU23: 21
A24: 2008-01-29 | B24: 0.7773 | C24: 0.7747 | D24: 0.7798 | E24: 0.770705 | F24: 0.010189037 | G24: 0.7564403482 | H24: 0.7849696518 | I24: 0 | J24: 0 | K24: 0 | L24: 0 | M24: 0 | N24: 0 | O24: 0 | P24: 0 | Q24: 0 | R24: 0 | S24: 0 | T24: 0 | U24: 0 | V24: =U24-MAX(U$14:U24) -> 0 | X24: 2008-01-29 | Y24: 0 | AQ24: 0.76572 | AR24: 0.01022465647 | AS24: 0.770705 | AT24: 0.010189037 | AU24: 22
A25: 2008-01-30 | B25: 0.777 | C25: 0.7747 | D25: 0.7917 | E25: 0.770805 | F25: 0.01024038451 | G25: 0.7564684617 | H25: 0.7851415383 | I25: 0 | J25: 0 | K25: 0 | L25: 0 | M25: 0 | N25: 0 | O25: 0 | P25: 0 | Q25: 0 | R25: 0 | S25: 0 | T25: 0 | U25: 0 | V25: =U25-MAX(U$14:U25) -> 0 | X25: 2008-01-30 | Y25: 0 | AQ25: 0.7666 | AR25: 0.01076466442 | AS25: 0.770805 | AT25: 0.01024038451 | AU25: 23
A26: 2008-01-31 | B26: 0.7868 | C26: 0.7767 | D26: 0.79 | E26: 0.771525 | F26: 0.01081720273 | G26: 0.7563809162 | H26: 0.7866690838 | I26: 0 | J26: 1 | K26: 0 | L26: 0 | M26: 0 | N26: 0 | O26: 0 | P26: 0 | Q26: 0 | R26: 0 | S26: 0 | T26: 0 | U26: 0 | V26: =U26-MAX(U$14:U26) -> 0 | X26: 2008-01-31 | Y26: 0 | AQ26: 0.769 | AR26: 0.01222611958 | AS26: 0.771525 | AT26: 0.01081720273 | AU26: 24
A27: 2008-02-01 | B27: 0.7946 | C27: 0.7856 | D27: 0.7961 | E27: 0.77296 | F27: 0.01183188066 | G27: 0.7563953671 | H27: 0.7895246329 | I27: 0 | J27: 1 | K27: 0 | L27: 1 | M27: 0 | N27: 0 | O27: 0.7946 | P27: 0 | Q27: 0 | R27: 0 | S27: 0.0021 | T27: 0.0021 | U27: 0.0021 | V27: =U27-MAX(U$14:U27) -> 0 | W27: =IF(V27=0,0,W26+1) -> 0 | X27: 2008-02-01 | Y27: 0.0021 | AQ27: 0.77248 | AR27: 0.01394416007 | AS27: 0.77296 | AT27: 0.01183188066 | AU27: 25
A28: 2008-02-04 | B28: 0.7925 | C28: 0.7894 | D28: 0.797 | E28: 0.774195 | F28: 0.01249909897 | G28: 0.7566962614 | H28: 0.7916937386 | I28: 0 | J28: 1 | K28: 0 | L28: 1 | M28: 0 | N28: 0 | O28: 0.7946 | P28: 0 | Q28: 0 | R28: 0 | S28: 0.0111 | T28: 0.0132 | U28: 0.0132 | V28: =U28-MAX(U$14:U28) -> 0 | W28: =IF(V28=0,0,W27+1) -> 0 | X28: 2008-02-04 | Y28: 0.0132 | AQ28: 0.77768 | AR28: 0.01025707561 | AS28: 0.774195 | AT28: 0.01249909897 | AU28: 26
A29: 2008-02-05 | B29: 0.7814 | C29: 0.7778 | D29: 0.7948 | E29: 0.774845 | F29: 0.01251884479 | G29: 0.7573186173 | H29: 0.7923713827 | I29: 0 | J29: 0 | K29: 0 | L29: 0 | M29: 0 | N29: 0 | O29: 0.7946 | P29: 0 | Q29: 0 | R29: 0 | S29: -0.0028 | T29: 0.0104 | U29: 0.0104 | V29: =U29-MAX(U$14:U29) -> -0.0028 | W29: 1 | X29: 2008-02-05 | Y29: 0.0104 | AQ29: 0.77923 | AR29: 0.009503267859 | AS29: 0.774845 | AT29: 0.01251884479 | AU29: 27
A30: 2008-02-06 | B30: 0.7842 | C30: 0.7786 | D30: 0.7895 | E30: 0.775375 | F30: 0.0126782836 | G30: 0.757625403 | H30: 0.793124597 | I30: 0 | J30: 0 | K30: 0 | L30: 0 | M30: 0 | N30: 0 | O30: 0.7946 | P30: 0 | Q30: 0 | R30: 0 | S30: -0.0018 | T30: 0.0086 | U30: 0.0086 | V30: =U30-MAX(U$14:U30) -> -0.0046 | W30: 2 | X30: 2008-02-06 | Y30: 0.0086 | Z30: 1 | AA30: Srovnání výsledků/parametr | AB30: 1 | AC30: 2 | AD30: 3 | AE30: 4 | AF30: 5 | AG30: 6 | AQ30: 0.78134 | AR30: 0.007893820368 | AS30: 0.775375 | AT30: 0.0126782836 | AU30: 28
A31: 2008-02-07 | B31: 0.786 | C31: 0.7822 | D31: 0.7929 | E31: 0.775405 | F31: 0.01270265622 | G31: 0.7576212813 | H31: 0.7931887187 | I31: 0 | J31: 0 | K31: 0 | L31: 0 | M31: 0 | N31: 0 | O31: 0.7946 | P31: 0 | Q31: 0 | R31: 0 | S31: -0.002 | T31: 0.0066 | U31: 0.0066 | V31: =U31-MAX(U$14:U31) -> -0.0066 | W31: 3 | X31: 2008-02-07 | Y31: 0.0066 | AA31: Metoda | AB31: Profit (zisk k poslednímu dni) | AC31: drawdown (maximální pokles) | AD31: rentabilita za rok (profit/drawdown*-2/n) | AE31: dny mezi peaky | AF31: Ziskovost (∑ ziskových obchodů/∑ ztrátových obchodů *-1 | AG31: Korelace (vztah mezi ziskem a časem) | AQ31: 0.78251 | AR31: 0.007626198267 | AS31: 0.775405 | AT31: 0.01270265622 | AU31: 29
A32: 2008-02-08 | B32: 0.788 | C32: 0.7832 | D32: 0.7914 | E32: 0.775695 | F32: 0.01291884186 | G32: 0.7576086214 | H32: 0.7937813786 | I32: 0 | J32: 0 | K32: 0 | L32: 0 | M32: 0 | N32: 0 | O32: 0.7946 | P32: 0 | Q32: 0 | R32: 0 | S32: 0.0006 | T32: 0.0072 | U32: 0.0072 | V32: =U32-MAX(U$14:U32) -> -0.006 | W32: 4 | X32: 2008-02-08 | Y32: 0.0072 | AA32: Směr.odch. při průměru 10 dnů | AB32: 0.366 | AC32: -0.1733 | AD32: 0.1055972302 | AE32: 547 | AF32: 1.706626955 | AG32: 0.9003278136 | AQ32: 0.78454 | AR32: 0.005926077961 | AS32: 0.775695 | AT32: 0.01291884186 | AU32: 30
A33: 2008-02-11 | B33: 0.7874 | C33: 0.7863 | D33: 0.7916 | E33: 0.775635 | F33: 0.01286142585 | G33: 0.7576290038 | H33: 0.7936409962 | I33: 0 | J33: 0 | K33: 0 | L33: 0 | M33: 0 | N33: 0 | O33: 0.7946 | P33: 0 | Q33: 0 | R33: 0 | S33: -0.0015 | T33: 0.0057 | U33: 0.0057 | V33: =U33-MAX(U$14:U33) -> -0.0075 | W33: 5 | X33: 2008-02-11 | Y33: 0.0057 | AA33: Směr.odch. při průměru 20 dnů | AB33: 0.2324 | AC33: -0.2872 | AD33: 0.04045961003 | AE33: 941 | AF33: 1.33805668 | AG33: 0.7864410394 | AQ33: 0.78552 | AR33: 0.005491775669 | AS33: 0.775635 | AT33: 0.01286142585 | AU33: 31
A34: 2008-02-12 | B34: 0.7889 | C34: 0.786 | D34: 0.7957 | E34: 0.7762 | F34: 0.01317960546 | G34: 0.7577485524 | H34: 0.7946514476 | I34: 0 | J34: 0 | K34: 0 | L34: 0 | M34: 0 | N34: 0 | O34: 0.7946 | P34: =IF(AND(O34=0,O33>0),O33-B34,0) -> 0 | Q34: =IF(M34>0,B35-B34,0) -> 0 | R34: 0 | S34: 0.0046 | T34: 0.0103 | U34: 0.0103 | V34: =U34-MAX(U$14:U34) -> -0.0029 | W34: 6 | X34: 2008-02-12 | Y34: 0.0103 | AA34: Směr.odch.+lim.ztráta, 10 dnů | AB34: 0.417535 | AC34: -0.1036 | AD34: 0.2015130309 | AE34: 438 | AF34: 1.314701549 | AG34: 0.9704121698 | AQ34: 0.78668 | AR34: 0.004816596309 | AS34: 0.7762 | AT34: 0.01317960546 | AU34: 32
A35: 2008-02-13 | B35: 0.7843 | C35: 0.781 | D35: 0.7908 | E35: 0.777005 | F35: 0.01315805742 | G35: 0.7585837196 | H35: 0.7954262804 | I35: 0 | J35: 0 | K35: 0 | L35: 0 | M35: 0 | N35: 0 | O35: 0.7946 | P35: =IF(AND(O35=0,O34>0),O34-B35,0) -> 0 | Q35: =IF(M35>0,B36-B35,0) -> 0 | R35: 0 | S35: -0.0023 | T35: 0.008 | U35: 0.008 | V35: =U35-MAX(U$14:U35) -> -0.0052 | W35: 7 | X35: 2008-02-13 | Y35: 0.008 | AA35: Směr.odch.+lim.ztráta, 20 dnů | AB35: 0.1641 | AC35: -0.1121 | AD35: 0.07319357716 | AE35: 972 | AF35: 2.177654407 | AG35: 0.3907213968 | AQ35: 0.78741 | AR35: 0.003723291555 | AS35: 0.777005 | AT35: 0.01315805742 | AU35: 33
A36: 2008-02-14 | B36: 0.7866 | C36: 0.7832 | D36: 0.7921 | E36: 0.778195 | F36: 0.01289311735 | G36: 0.7601446357 | H36: 0.7962453643 | I36: 0 | J36: 0 | K36: 0 | L36: 0 | M36: 0 | N36: 0 | O36: 0.7946 | P36: 0 | Q36: 0 | R36: 0 | S36: -0.0033 | T36: 0.0047 | U36: 0.0047 | V36: =U36-MAX(U$14:U36) -> -0.0085 | W36: 8 | X36: 2008-02-14 | Y36: 0.0047 | AQ36: 0.78739 | AR36: 0.003727049772 | AS36: 0.778195 | AT36: 0.01289311735 | AU36: 34
A37: 2008-02-15 | B37: 0.7899 | C37: 0.7838 | D37: 0.7918 | E37: 0.7797 | F37: 0.01240560357 | G37: 0.762332155 | H37: 0.797067845 | I37: 0 | J37: 0 | K37: 0 | L37: 0 | M37: 0 | N37: 0 | O37: 0.7946 | P37: 0 | Q37: 0 | R37: 0 | S37: -0.0062 | T37: -0.0015 | U37: -0.0015 | V37: =U37-MAX(U$14:U37) -> -0.0147 | W37: 9 | X37: 2008-02-15 | Y37: -0.0015 | AQ37: 0.78692 | AR37: 0.003016885812 | AS37: 0.7797 | AT37: 0.01240560357 | AU37: 35
A38: 2008-02-18 | B38: 0.7961 | C38: 0.7892 | D38: 0.7979 | E38: 0.78248 | F38: 0.009098714195 | G38: 0.7697418001 | H38: 0.7952181999 | I38: 0 | J38: 0 | K38: 0 | L38: 0 | M38: 0 | N38: 0 | O38: 0.7946 | P38: 0 | Q38: 0 | R38: 0 | S38: -0.0022 | T38: -0.0037 | U38: -0.0037 | V38: =U38-MAX(U$14:U38) -> -0.0169 | W38: 10 | X38: 2008-02-18 | Y38: -0.0037 | AQ38: 0.78728 | AR38: 0.003779629611 | AS38: 0.78248 | AT38: 0.009098714195 | AU38: 36
A39: 2008-02-19 | B39: 0.7983 | C39: 0.7949 | D39: 0.8023 | E39: 0.7841 | F39: 0.008884312016 | G39: 0.7716619632 | H39: 0.7965380368 | I39: 0 | J39: 1 | K39: =IF(I38+I39=2,1,0) -> 0 | L39: 0 | M39: 0 | N39: 0 | O39: 0.7946 | P39: 0 | Q39: 0 | R39: 0 | S39: -0.0001 | T39: -0.0038 | U39: -0.0038 | V39: =U39-MAX(U$14:U39) -> -0.017 | W39: 11 | X39: 2008-02-19 | Y39: -0.0038 | AQ39: 0.78897 | AR39: 0.004485097546 | AS39: 0.7841 | AT39: 0.008884312016 | AU39: 37
A40: 2008-02-20 | B40: 0.7984 | C40: 0.7899 | D40: 0.7992 | E40: 0.785865 | F40: 0.007999392164 | G40: 0.774665851 | H40: 0.797064149 | I40: 0 | J40: 1 | K40: 0 | L40: 1 | M40: 0 | N40: 0 | O40: 0.7946 | P40: 0 | Q40: 0 | R40: 0 | S40: -0.0019 | T40: -0.0057 | U40: -0.0057 | V40: =U40-MAX(U$14:U40) -> -0.0189 | W40: 12 | X40: 2008-02-20 | Y40: -0.0057 | AQ40: 0.79039 | AR40: 0.004971609397 | AS40: 0.785865 | AT40: 0.007999392164 | AU40: 38
A41: 2008-02-21 | B41: 0.8003 | C41: 0.7967 | D41: 0.802 | E41: 0.787165 | F41: 0.00812596302 | G41: 0.7757886518 | H41: 0.7985413482 | I41: 0 | J41: 1 | K41: 0 | L41: 1 | M41: 0 | N41: 0 | O41: 0.7946 | P41: 0 | Q41: 0 | R41: 0 | S41: -0.008 | T41: -0.0137 | U41: -0.0137 | V41: =U41-MAX(U$14:U41) -> -0.0269 | W41: 13 | X41: 2008-02-21 | Y41: -0.0137 | AQ41: 0.79182 | AR41: 0.005528616463 | AS41: 0.787165 | AT41: 0.00812596302 | AU41: 39
A42: 2008-02-22 | B42: 0.8083 | C42: 0.7992 | D42: 0.8104 | E42: 0.789195 | F42: 0.008080870931 | G42: 0.7778817807 | H42: 0.8005082193 | I42: 0 | J42: 1 | K42: 0 | L42: 1 | M42: 0 | N42: 0 | O42: 0.7946 | P42: 0 | Q42: 0 | R42: 0 | S42: -0.005 | T42: -0.0187 | U42: -0.0187 | V42: =U42-MAX(U$14:U42) -> -0.0319 | W42: 14 | X42: 2008-02-22 | Y42: -0.0187 | AQ42: 0.79385 | AR42: 0.007221114872 | AS42: 0.789195 | AT42: 0.008080870931 | AU42: 40
A43: 2008-02-25 | B43: 0.8133 | C43: 0.8054 | D43: 0.8144 | E43: 0.79098 | F43: 0.009189374299 | G43: 0.778114876 | H43: 0.803845124 | I43: 0 | J43: 1 | K43: 0 | L43: 1 | M43: 0 | N43: 0 | O43: 0.7946 | P43: 0 | Q43: 0 | R43: 0 | S43: -0.003 | T43: -0.0217 | U43: -0.0217 | V43: =U43-MAX(U$14:U43) -> -0.0349 | W43: 15 | X43: 2008-02-25 | Y43: -0.0217 | AQ43: 0.79644 | AR43: 0.008894177871 | AS43: 0.79098 | AT43: 0.009189374299 | AU43: 41
A44: 2008-02-26 | B44: 0.8163 | C44: 0.8063 | D44: 0.8186 | E44: 0.79293 | F44: 0.01016563328 | G44: 0.7786981134 | H44: 0.8071618866 | I44: 0 | J44: 1 | K44: 0 | L44: 1 | M44: 0 | N44: 0 | O44: 0.7946 | P44: 0 | Q44: 0 | R44: 0 | S44: 0.001 | T44: -0.0207 | U44: -0.0207 | V44: =U44-MAX(U$14:U44) -> -0.0339 | W44: 16 | X44: 2008-02-26 | Y44: -0.0207 | AQ44: 0.79918 | AR44: 0.0102642876 | AS44: 0.79293 | AT44: 0.01016563328 | AU44: 42
A45: 2008-02-27 | B45: 0.8153 | C45: 0.8121 | D45: 0.8215 | E45: 0.794845 | F45: 0.01058326391 | G45: 0.7800284305 | H45: 0.8096615695 | I45: 0 | J45: 1 | K45: 0 | L45: 1 | M45: 0 | N45: 0 | O45: 0.7946 | P45: 0 | Q45: 0 | R45: 0 | S45: 0.0019 | T45: -0.0188 | U45: -0.0188 | V45: =U45-MAX(U$14:U45) -> -0.032 | W45: 17 | X45: 2008-02-27 | Y45: -0.0188 | AQ45: 0.80228 | AR45: 0.009979458903 | AS45: 0.794845 | AT45: 0.01058326391 | AU45: 43
A46: 2008-02-28 | B46: 0.8134 | C46: 0.8103 | D46: 0.8184 | E46: 0.796175 | F46: 0.01114517272 | G46: 0.7805717582 | H46: 0.8117782418 | I46: 0 | J46: 1 | K46: 0 | L46: 1 | M46: 0 | N46: 0 | O46: 0.7946 | P46: 0 | Q46: 0 | R46: 0 | S46: 0.0148 | T46: -0.004 | U46: -0.004 | V46: =U46-MAX(U$14:U46) -> -0.0172 | W46: 18 | X46: 2008-02-28 | Y46: -0.004 | AQ46: 0.80496 | AR46: 0.008954685924 | AS46: 0.796175 | AT46: 0.01114517272 | AU46: 44
A47: 2008-02-29 | B47: 0.7986 | C47: 0.7969 | D47: 0.8173 | E47: 0.796375 | F47: 0.01115100332 | G47: 0.7807635954 | H47: 0.8119864046 | I47: 0 | J47: 0 | K47: 0 | L47: 0 | M47: 0 | N47: 0 | O47: 0.7946 | P47: 0 | Q47: 0 | R47: 0 | S47: -0.0075 | T47: -0.0115 | U47: -0.0115 | V47: =U47-MAX(U$14:U47) -> -0.0247 | W47: 19 | X47: 2008-02-29 | Y47: -0.0115 | AQ47: 0.80583 | AR47: 0.007797057137 | AS47: 0.796375 | AT47: 0.01115100332 | AU47: 45
A48: 2008-03-03 | B48: 0.8061 | C48: 0.792 | D48: 0.8083 | E48: 0.797055 | F48: 0.01130754063 | G48: 0.7812244431 | H48: 0.8128855569 | I48: 0 | J48: 0 | K48: 0 | L48: 0 | M48: 0 | N48: 0 | O48: 0.7946 | P48: 0 | Q48: 0 | R48: 0 | S48: 0.0067 | T48: -0.0048 | U48: -0.0048 | V48: =U48-MAX(U$14:U48) -> -0.018 | W48: 20 | X48: 2008-03-03 | Y48: -0.0048 | AQ48: 0.80683 | AR48: 0.007094652916 | AS48: 0.797055 | AT48: 0.01130754063 | AU48: 46
A49: 2008-03-04 | B49: 0.7994 | C49: 0.7952 | D49: 0.8066 | E49: 0.797955 | F49: 0.01072713732 | G49: 0.7829370078 | H49: 0.8129729922 | I49: 0 | J49: 0 | K49: 0 | L49: 0 | M49: 0 | N49: 0 | O49: 0.7946 | P49: 0 | Q49: 0 | R49: 0 | S49: -0.0036 | T49: -0.0084 | U49: -0.0084 | V49: =U49-MAX(U$14:U49) -> -0.0216 | W49: 21 | X49: 2008-03-04 | Y49: -0.0084 | AQ49: 0.80694 | AR49: 0.00696895975 | AS49: 0.797955 | AT49: 0.01072713732 | AU49: 47
A50: 2008-03-05 | B50: 0.803 | C50: 0.7918 | D50: 0.8052 | E50: 0.798895 | F50: 0.01029565321 | G50: 0.7844810855 | H50: 0.8133089145 | I50: 0 | J50: 0 | K50: 0 | L50: 0 | M50: 0 | N50: 0 | O50: 0.7946 | P50: 0 | Q50: 0 | R50: 0 | S50: 0.0058 | T50: -0.0026 | U50: -0.0026 | V50: =U50-MAX(U$14:U50) -> -0.0158 | W50: 22 | X50: 2008-03-05 | Y50: -0.0026 | AQ50: 0.8074 | AR50: 0.006527939951 | AS50: 0.798895 | AT50: 0.01029565321 | AU50: 48
A51: 2008-03-06 | B51: 0.7972 | C51: 0.794 | D51: 0.8048 | E51: 0.799455 | F51: 0.009875043038 | G51: 0.7856299397 | H51: 0.8132800603 | I51: 0 | J51: 0 | K51: 0 | L51: 0 | M51: 0 | N51: 0 | O51: 0.7946 | P51: 0 | Q51: 0 | R51: 0 | S51: 0.0038 | T51: 0.0012 | U51: 0.0012 | V51: =U51-MAX(U$14:U51) -> -0.012 | W51: 23 | X51: 2008-03-06 | Y51: 0.0012 | AQ51: 0.80709 | AR51: 0.00691960259 | AS51: 0.799455 | AT51: 0.009875043038 | AU51: 49
A52: 2008-03-07 | B52: 0.7934 | C52: 0.7903 | D52: 0.8017 | E52: 0.799725 | F52: 0.009628908297 | G52: 0.7862445284 | H52: 0.8132054716 | I52: 0 | J52: 0 | K52: 0 | L52: 0 | M52: 0 | N52: 0 | O52: 0.7946 | P52: 0 | Q52: 0 | R52: 0 | S52: 0.0053 | T52: 0.0065 | U52: 0.0065 | V52: =U52-MAX(U$14:U52) -> -0.0067 | W52: 24 | X52: 2008-03-07 | Y52: 0.0065 | AQ52: 0.8056 | AR52: 0.008015984032 | AS52: 0.799725 | AT52: 0.009628908297 | AU52: 50
A53: 2008-03-10 | B53: 0.7881 | C53: 0.7872 | D53: 0.7962 | E53: 0.79976 | F53: 0.009585217786 | G53: 0.7863406951 | H53: 0.8131793049 | I53: 0 | J53: 0 | K53: 0 | L53: 0 | M53: 0 | N53: 0 | O53: 0.7946 | P53: 0 | Q53: 0 | R53: 0 | S53: -0.0134 | T53: -0.0069 | U53: -0.0069 | V53: =U53-MAX(U$14:U53) -> -0.0201 | W53: 25 | X53: 2008-03-10 | Y53: -0.0069 | AQ53: 0.80308 | AR53: 0.009088542237 | AS53: 0.79976 | AT53: 0.009585217786 | AU53: 51
A54: 2008-03-11 | B54: 0.8015 | C54: 0.7871 | D54: 0.8055 | E54: 0.80039 | F54: 0.00925926023 | G54: 0.7874270357 | H54: 0.8133529643 | I54: 0 | J54: 0 | K54: 0 | L54: 0 | M54: 0 | N54: 0 | O54: 0.7946 | P54: 0 | Q54: 0 | R54: 0 | S54: -0.005 | T54: -0.0119 | U54: -0.0119 | V54: =U54-MAX(U$14:U54) -> -0.0251 | W54: 26 | X54: 2008-03-11 | Y54: -0.0119 | AQ54: 0.8016 | AR54: 0.007948836393 | AS54: 0.80039 | AT54: 0.00925926023 | AU54: 52
A55: 2008-03-12 | B55: 0.8065 | C55: 0.7992 | D55: 0.8089 | E55: 0.8015 | F55: 0.008568780543 | G55: 0.7895037072 | H55: 0.8134962928 | I55: 0 | J55: 0 | K55: 0 | L55: 0 | M55: 0 | N55: 0 | O55: 0.7946 | P55: 0 | Q55: 0 | R55: 0 | S55: -0.0098 | T55: -0.0217 | U55: -0.0217 | V55: =U55-MAX(U$14:U55) -> -0.0349 | W55: 27 | X55: 2008-03-12 | Y55: -0.0217 | AQ55: 0.80072 | AR55: 0.006785396083 | AS55: 0.8015 | AT55: 0.008568780543 | AU55: 53
A56: 2008-03-13 | B56: 0.8163 | C56: 0.8003 | D56: 0.8187 | E56: 0.802985 | F56: 0.008430318796 | G56: 0.7911825537 | H56: 0.8147874463 | I56: 0 | J56: 1 | K56: 0 | L56: 0 | M56: 0 | N56: 0 | O56: 0.7946 | P56: 0 | Q56: 0 | R56: 0 | S56: 0.0026 | T56: -0.0191 | U56: -0.0191 | V56: =U56-MAX(U$14:U56) -> -0.0323 | W56: 28 | X56: 2008-03-13 | Y56: -0.0191 | AQ56: 0.80101 | AR56: 0.007358865402 | AS56: 0.802985 | AT56: 0.008430318796 | AU56: 54
A57: 2008-03-14 | B57: 0.8137 | C57: 0.8109 | D57: 0.8214 | E57: 0.804175 | F57: 0.008175198774 | G57: 0.7927297217 | H57: 0.8156202783 | I57: 0 | J57: 0 | K57: 0 | L57: 0 | M57: 0 | N57: 0 | O57: 0.7946 | P57: 0 | Q57: 0 | R57: 0 | S57: 0.0131 | T57: -0.006 | U57: -0.006 | V57: =U57-MAX(U$14:U57) -> -0.0192 | W57: 29 | X57: 2008-03-14 | Y57: -0.006 | AQ57: 0.80252 | AR57: 0.008209482322 | AS57: 0.804175 | AT57: 0.008175198774 | AU57: 55
A58: 2008-03-17 | B58: 0.8006 | C58: 0.7918 | D58: 0.8202 | E58: 0.8044 | F58: 0.008010118601 | G58: 0.793185834 | H58: 0.815614166 | I58: 0 | J58: 0 | K58: 0 | L58: 0 | M58: 0 | N58: 0 | O58: 0.7946 | P58: 0 | Q58: 0 | R58: 0 | S58: -0.0095 | T58: -0.0155 | U58: -0.0155 | V58: =U58-MAX(U$14:U58) -> -0.0287 | W58: 30 | X58: 2008-03-17 | Y58: -0.0155 | AQ58: 0.80197 | AR58: 0.008135115242 | AS58: 0.8044 | AT58: 0.008010118601 | AU58: 56
A59: 2008-03-18 | B59: 0.8101 | C59: 0.7975 | D59: 0.8152 | E59: 0.80499 | F59: 0.007973575108 | G59: 0.7938269948 | H59: 0.8161530052 | I59: 0 | J59: 0 | K59: 0 | L59: 0 | M59: 0 | N59: 0 | O59: 0.7946 | P59: 0 | Q59: 0 | R59: 0 | S59: 0.0108 | T59: -0.0047 | U59: -0.0047 | V59: =U59-MAX(U$14:U59) -> -0.0179 | W59: 31 | X59: 2008-03-18 | Y59: -0.0047 | AQ59: 0.80304 | AR59: 0.008425224033 | AS59: 0.80499 | AT59: 0.007973575108 | AU59: 57
A60: 2008-03-19 | B60: 0.7993 | C60: 0.7967 | D60: 0.8175 | E60: 0.805035 | F60: 0.007938719985 | G60: 0.793920792 | H60: 0.816149208 | I60: 0 | J60: 0 | K60: 0 | L60: 0 | M60: 0 | N60: 0 | O60: 0.7946 | P60: 0 | Q60: 0 | R60: 0 | S60: 0.0071 | T60: 0.0024 | U60: 0.0024 | V60: =U60-MAX(U$14:U60) -> -0.0108 | W60: 32 | X60: 2008-03-19 | Y60: 0.0024 | AQ60: 0.80267 | AR60: 0.008499770585 | AS60: 0.805035 | AT60: 0.007938719985 | AU60: 58
A61: 2008-03-20 | B61: 0.7922 | C61: 0.7862 | D61: 0.8045 | E61: 0.80463 | F61: 0.008365112073 | G61: 0.7929188431 | H61: 0.8163411569 | I61: 1 | J61: 0 | K61: 0 | L61: 0 | M61: 0 | N61: 0 | O61: 0.7946 | P61: 0 | Q61: 0 | R61: 0 | S61: 0 | T61: 0.0024 | U61: 0.0024 | V61: =U61-MAX(U$14:U61) -> -0.0108 | W61: 33 | X61: 2008-03-20 | Y61: 0.0024 | AQ61: 0.80217 | AR61: 0.008942376642 | AS61: 0.80463 | AT61: 0.008365112073 | AU61: 59
A62: 2008-03-21 | B62: 0.7922 | C62: 0.7891 | D62: 0.7959 | E62: 0.803825 | F62: 0.008739500844 | G62: 0.7915896988 | H62: 0.8160603012 | I62: 1 | J62: 0 | K62: 1 | L62: 0 | M62: 0.7922 | N62: 0 | O62: 0 | P62: 0.0024 | Q62: 0.0089 | R62: 0.0089 | S62: 0 | T62: 0 | U62: 0.0113 | V62: =U62-MAX(U$14:U62) -> -0.0019 | W62: 34 | X62: 2008-03-21 | Y62: 0.0113 | AQ62: 0.80205 | AR62: 0.00906644914 | AS62: 0.803825 | AT62: 0.008739500844 | AU62: 60
A63: 2008-03-24 | B63: 0.8011 | C63: 0.788 | D63: 0.8019 | E63: 0.803215 | F63: 0.008478754331 | G63: 0.7913447439 | H63: 0.8150852561 | I63: 0 | J63: 0 | K63: 0 | L63: 0 | M63: 0.7922 | N63: 0 | O63: 0 | P63: 0 | Q63: 0.0044 | R63: 0.0133 | S63: 0 | T63: 0 | U63: 0.0157 | V63: =U63-MAX(U$14:U63) -> 0 | W63: 0 | X63: 2008-03-24 | Y63: 0.0157 | AQ63: 0.80335 | AR63: 0.007819239093 | AS63: 0.803215 | AT63: 0.008478754331 | AU63: 61
A64: 2008-03-25 | B64: 0.8055 | C64: 0.7988 | D64: 0.8083 | E64: 0.802675 | F64: 0.007955996166 | G64: 0.7915366054 | H64: 0.8138133946 | I64: 0 | J64: 0 | K64: 0 | L64: 0 | M64: 0.7922 | N64: 0 | O64: 0 | P64: 0 | Q64: -0.0018 | R64: 0.0115 | S64: 0 | T64: 0 | U64: 0.0139 | V64: =U64-MAX(U$14:U64) -> -0.0018 | W64: 1 | X64: 2008-03-25 | Y64: 0.0139 | AQ64: 0.80375 | AR64: 0.007816680881 | AS64: 0.802675 | AT64: 0.007955996166 | AU64: 62
A65: 2008-03-26 | B65: 0.8037 | C65: 0.7982 | D65: 0.8103 | E65: 0.802095 | F65: 0.007419196385 | G65: 0.7917081251 | H65: 0.8124818749 | I65: 0 | J65: 0 | K65: 0 | L65: 0 | M65: 0.7922 | N65: 0 | O65: 0 | P65: 0 | Q65: 0.002 | R65: 0.0135 | S65: 0 | T65: 0 | U65: 0.0159 | V65: =U65-MAX(U$14:U65) -> 0 | W65: 0 | X65: 2008-03-26 | Y65: 0.0159 | AQ65: 0.80347 | AR65: 0.007763124371 | AS65: 0.802095 | AT65: 0.007419196385 | AU65: 63
A66: 2008-03-27 | B66: 0.8057 | C66: 0.7997 | D66: 0.8069 | E66: 0.80171 | F66: 0.007011126871 | G66: 0.7918944224 | H66: 0.8115255776 | I66: 0 | J66: 0 | K66: 0 | L66: 0 | M66: 0.7922 | N66: 0 | O66: 0 | P66: 0 | Q66: -0.0098 | R66: 0.0037 | S66: 0 | T66: 0 | U66: 0.0061 | V66: =U66-MAX(U$14:U66) -> -0.0098 | W66: 1 | X66: 2008-03-27 | Y66: 0.0061 | AQ66: 0.80241 | AR66: 0.006571065363 | AS66: 0.80171 | AT66: 0.007011126871 | AU66: 64
A67: 2008-03-28 | B67: 0.7959 | C67: 0.7937 | D67: 0.8063 | E67: 0.801575 | F67: 0.007095200843 | G67: 0.7916417188 | H67: 0.8115082812 | I67: 0 | J67: 0 | K67: 0 | L67: 0 | M67: 0.7922 | N67: 0 | O67: 0 | P67: 0 | Q67: -0.0114 | R67: -0.0077 | S67: 0 | T67: 0 | U67: -0.0053 | V67: =U67-MAX(U$14:U67) -> -0.0212 | W67: 2 | X67: =A67 -> 2008-03-28 | Y67: -0.0053 | AQ67: 0.80063 | AR67: 0.00561267316 | AS67: 0.801575 | AT67: 0.007095200843 | AU67: 65
A68: 2008-03-31 | B68: 0.7845 | C68: 0.7831 | D68: 0.7961 | E68: 0.800495 | F68: 0.007920194126 | G68: 0.7894067282 | H68: 0.8115832718 | I68: 1 | J68: 0 | K68: 0 | L68: 0 | M68: 0.7922 | N68: 0 | O68: 0 | P68: 0 | Q68: 0.002 | R68: -0.0057 | S68: 0 | T68: 0 | U68: -0.0033 | V68: =U68-MAX(U$14:U68) -> -0.0192 | W68: 3 | X68: 2008-03-31 | Y68: -0.0033 | AQ68: 0.79902 | AR68: 0.007411315673 | AS68: 0.800495 | AT68: 0.007920194126 | AU68: 66
A69: 2008-04-01 | B69: 0.7865 | C69: 0.7777 | D69: 0.7881 | E69: 0.79985 | F69: 0.008488020971 | G69: 0.7879667706 | H69: 0.8117332294 | I69: 1 | J69: 0 | K69: 1 | L69: 0 | M69: 0.7922 | N69: 0 | O69: 0 | P69: 0 | Q69: 0.0023 | R69: -0.0034 | S69: 0 | T69: 0 | U69: -0.001 | V69: =U69-MAX(U$14:U69) -> -0.0169 | W69: 4 | X69: 2008-04-01 | Y69: -0.001 | AQ69: 0.79666 | AR69: 0.007263360104 | AS69: 0.79985 | AT69: 0.008488020971 | AU69: =AU68+1 -> 67
A70: 2008-04-02 | B70: 0.7888 | C70: 0.7835 | D70: 0.7927 | E70: 0.79914 | F70: 0.008783586967 | G70: 0.7868429782 | H70: 0.8114370218 | I70: 0 | J70: 0 | K70: 0 | L70: 0 | M70: 0.7922 | N70: 0 | O70: 0 | P70: 0 | Q70: -0.004 | R70: -0.0074 | S70: 0 | T70: 0 | U70: -0.005 | V70: =U70-MAX(U$14:U70) -> -0.0209 | W70: 5 | X70: 2008-04-02 | Y70: -0.005 | AQ70: 0.79561 | AR70: 0.007558763126 | AS70: 0.79914 | AT70: 0.008783586967 | AU70: 68
A71: 2008-04-03 | B71: 0.7848 | C71: 0.7805 | D71: 0.7916 | E71: 0.79852 | F71: 0.009319903433 | G71: 0.7854721352 | H71: 0.8115678648 | I71: 1 | J71: 0 | K71: 0 | L71: 0 | M71: 0.7922 | N71: 0 | O71: 0 | P71: 0 | Q71: 0.0046 | R71: -0.0028 | S71: 0 | T71: 0 | U71: -0.0004 | V71: =U71-MAX(U$14:U71) -> -0.0163 | W71: 6 | X71: 2008-04-03 | Y71: -0.0004 | AQ71: 0.79487 | AR71: 0.008192075439 | AS71: 0.79852 | AT71: 0.009319903433 | AU71: 69
A72: 2008-04-04 | B72: 0.7894 | C72: 0.7808 | D72: 0.7901 | E72: 0.79832 | F72: 0.009469350559 | G72: 0.7850629092 | H72: 0.8115770908 | I72: 0 | J72: 0 | K72: 0 | L72: 0 | M72: 0.7922 | N72: 0 | O72: 0 | P72: 0 | Q72: 0.007 | R72: 0.0042 | S72: 0 | T72: 0 | U72: 0.0066 | V72: =U72-MAX(U$14:U72) -> -0.0093 | W72: 7 | X72: 2008-04-04 | Y72: 0.0066 | AQ72: 0.79459 | AR72: 0.008325316811 | AS72: 0.79832 | AT72: 0.009469350559 | AU72: 70
A73: 2008-04-07 | B73: 0.7964 | C73: 0.7863 | D73: 0.7988 | E73: 0.798735 | F73: 0.009190118334 | G73: 0.7858688343 | H73: 0.8116011657 | I73: 0 | J73: 0 | K73: 0 | L73: 0 | M73: 0.7922 | N73: 0 | O73: 0 | P73: 0 | Q73: 0.0012 | R73: 0.0054 | S73: 0 | T73: 0 | U73: 0.0078 | V73: =U73-MAX(U$14:U73) -> -0.0081 | W73: 8 | X73: 2008-04-07 | Y73: 0.0078 | AQ73: 0.79412 | AR73: 0.008073388384 | AS73: 0.798735 | AT73: 0.009190118334 | AU73: 71
A74: 2008-04-08 | B74: 0.7976 | C74: 0.7914 | D74: 0.8006 | E74: 0.79854 | F74: 0.009170736066 | G74: 0.7857009695 | H74: 0.8113790305 | I74: 0 | J74: 0 | K74: =IF(I73+I74=2,1,0) -> 0 | L74: 0 | M74: 0.7922 | N74: 0 | O74: 0 | P74: 0 | Q74: -0.0011 | R74: 0.0043 | S74: 0 | T74: 0 | U74: 0.0067 | V74: =U74-MAX(U$14:U74) -> -0.0092 | W74: 9 | X74: 2008-04-08 | Y74: 0.0067 | AQ74: 0.79333 | AR74: 0.00726746861 | AS74: 0.79854 | AT74: 0.009170736066 | AU74: 72
A75: 2008-04-09 | B75: 0.7965 | C75: 0.7927 | D75: 0.799 | E75: 0.79804 | F75: 0.008994020236 | G75: 0.7854483717 | H75: 0.8106316283 | I75: 0 | J75: 0 | K75: 0 | L75: 0 | M75: 0.7922 | N75: 0 | O75: 0 | P75: 0 | Q75: 0.0021 | R75: 0.0064 | S75: 0 | T75: 0 | U75: 0.0088 | V75: =U75-MAX(U$14:U75) -> -0.0071 | W75: 10 | X75: 2008-04-09 | Y75: 0.0088 | AQ75: 0.79261 | AR75: 0.006522951786 | AS75: 0.79804 | AT75: 0.008994020236 | AU75: 73
A76: 2008-04-10 | B76: 0.7986 | C76: 0.7961 | D76: 0.8027 | E76: 0.797155 | F76: 0.007965768952 | G76: 0.7860029235 | H76: 0.8083070765 | I76: 0 | J76: 0 | K76: 0 | L76: 0 | M76: 0.7922 | N76: 0 | O76: 0 | P76: 0 | Q76: -0.0054 | R76: 0.001 | S76: 0 | T76: 0 | U76: 0.0034 | V76: =U76-MAX(U$14:U76) -> -0.0125 | W76: 11 | X76: 2008-04-10 | Y76: 0.0034 | AQ76: 0.7919 | AR76: 0.005338351806 | AS76: 0.797155 | AT76: 0.007965768952 | AU76: 74
A77: 2008-04-11 | B77: 0.7932 | C77: 0.792 | D77: 0.801 | E77: 0.79613 | F77: 0.007035488611 | G77: 0.7862803159 | H77: 0.8059796841 | I77: 0 | J77: 0 | K77: 0 | L77: 0 | M77: 0.7922 | N77: 0 | O77: 0 | P77: 0 | Q77: -0.0034 | R77: -0.0024 | S77: 0 | T77: 0 | U77: -1.110223025e-16 | V77: =U77-MAX(U$14:U77) -> -0.0159 | W77: 12 | X77: 2008-04-11 | Y77: -1.110223025e-16 | AQ77: 0.79163 | AR77: 0.005195584664 | AS77: 0.79613 | AT77: 0.007035488611 | AU77: 75
A78: 2008-04-14 | B78: 0.7898 | C78: 0.7848 | D78: 0.7932 | E78: 0.79559 | F78: 0.007085965001 | G78: 0.785669649 | H78: 0.805510351 | I78: 0 | J78: 0 | K78: 0 | L78: 0 | M78: 0.7922 | N78: 0 | O78: 0 | P78: 0 | Q78: -0.0048 | R78: -0.0072 | S78: 0 | T78: 0 | U78: -0.0048 | V78: =U78-MAX(U$14:U78) -> -0.0207 | W78: 13 | X78: 2008-04-14 | Y78: -0.0048 | AQ78: 0.79216 | AR78: 0.004686619251 | AS78: 0.79559 | AT78: 0.007085965001 | AU78: 76
A79: 2008-04-15 | B79: 0.785 | C79: 0.7823 | D79: 0.7949 | E79: 0.794335 | F79: 0.006611828416 | G79: 0.7850784402 | H79: 0.8035915598 | I79: 1 | J79: 0 | K79: 0 | L79: 0 | M79: 0.7922 | N79: 0 | O79: 0 | P79: 0 | Q79: 0.006 | R79: -0.0012 | S79: 0 | T79: 0 | U79: 0.0012 | V79: =U79-MAX(U$14:U79) -> -0.0147 | W79: 14 | X79: 2008-04-15 | Y79: =U79 -> 0.0012 | AQ79: 0.79201 | AR79: 0.00488517144 | AS79: 0.794335 | AT79: 0.006611828416 | AU79: 77
A80: 2008-04-16 | B80: 0.791 | C80: 0.7827 | D80: 0.7932 | E80: 0.79392 | F80: 0.006547335336 | G80: 0.7847537305 | H80: 0.8030862695 | I80: 0 | J80: 0 | K80: 0 | L80: 0 | M80: 0.7922 | N80: 0 | O80: 0 | P80: 0 | Q80: -0.0005 | R80: -0.0017 | S80: 0 | T80: 0 | U80: 0.0007 | V80: =U80-MAX(U$14:U80) -> -0.0152 | W80: 15 | X80: 2008-04-16 | Y80: 0.0007 | AQ80: 0.79223 | AR80: 0.004784150917 | AS80: 0.79392 | AT80: 0.006547335336 | AU80: 78
A81: 2008-04-17 | B81: 0.7905 | C81: 0.7847 | D81: 0.7934 | E81: 0.793835 | F81: 0.006580066489 | G81: 0.7846229069 | H81: 0.8030470931 | I81: 0 | J81: 0 | K81: 0 | L81: 0 | M81: 0.7922 | N81: 0 | O81: 0 | P81: 0 | Q81: 0.0001 | R81: -0.0016 | S81: 0 | T81: 0 | U81: 0.0008 | V81: =U81-MAX(U$14:U81) -> -0.0151 | W81: 16 | X81: 2008-04-17 | Y81: 0.0008 | AQ81: 0.7928 | AR81: 0.004164372702 | AS81: 0.793835 | AT81: 0.006580066489 | AU81: 79
A82: 2008-04-18 | B82: 0.7906 | C82: 0.7846 | D82: 0.7941 | E82: 0.793755 | F82: 0.006609120592 | G82: 0.7845022312 | H82: 0.8030077688 | I82: 0 | J82: 0 | K82: 0 | L82: 0 | M82: 0.7922 | N82: 0 | O82: 0 | P82: 0 | Q82: 0.0044 | R82: 0.0028 | S82: 0 | T82: 0 | U82: 0.0052 | V82: =U82-MAX(U$14:U82) -> -0.0107 | W82: 17 | X82: 2008-04-18 | Y82: 0.0052 | AQ82: 0.79292 | AR82: 0.004081127295 | AS82: 0.793755 | AT82: 0.006609120592 | AU82: 80
A83: 2008-04-21 | B83: 0.795 | C83: 0.7889 | D83: 0.7971 | E83: 0.79345 | F83: 0.006400585911 | G83: 0.7844891797 | H83: 0.8024108203 | I83: 0 | J83: 0 | K83: 0 | L83: 0 | M83: 0.7922 | N83: 0 | O83: 0 | P83: 0 | Q83: 0.0025 | R83: 0.0053 | S83: 0 | T83: 0 | U83: 0.0077 | V83: =U83-MAX(U$14:U83) -> -0.0082 | W83: 18 | X83: 2008-04-21 | Y83: 0.0077 | AQ83: 0.79278 | AR83: 0.003982160218 | AS83: 0.79345 | AT83: 0.006400585911 | AU83: 81
A84: 2008-04-22 | B84: 0.7975 | C84: 0.7898 | D84: 0.7989 | E84: 0.79305 | F84: 0.005862380063 | G84: 0.7848426679 | H84: 0.8012573321 | I84: 0 | J84: 0 | K84: 0 | L84: 0 | M84: 0.7922 | N84: 0 | O84: 0 | P84: 0 | Q84: -0.0041 | R84: 0.0012 | S84: 0 | T84: 0 | U84: 0.0036 | V84: =U84-MAX(U$14:U84) -> -0.0123 | W84: 19 | X84: 2008-04-22 | Y84: 0.0036 | AQ84: 0.79277 | AR84: 0.003970151131 | AS84: 0.79305 | AT84: 0.005862380063 | AU84: 82
A85: 2008-04-23 | B85: 0.7934 | C85: 0.7923 | D85: 0.8037 | E85: 0.792535 | F85: 0.005332661156 | G85: =E85-G$2*F85 -> 0.7850692744 | H85: =E85+H$2*F85 -> 0.8000007256 | I85: 0 | J85: 0 | K85: 0 | L85: 0 | M85: 0.7922 | N85: 0 | O85: 0 | P85: 0 | Q85: -0.0076 | R85: -0.0064 | S85: 0 | T85: 0 | U85: -0.004 | V85: =U85-MAX(U$14:U85) -> -0.0199 | W85: 20 | X85: 2008-04-23 | Y85: -0.004 | AQ85: 0.79246 | AR85: 0.00378343759 | AS85: 0.792535 | AT85: 0.005332661156 | AU85: 83
A86: 2008-04-24 | B86: 0.7858 | C86: 0.7853 | D86: 0.7948 | E86: 0.79154 | F86: 0.004587962511 | G86: 0.7851168525 | H86: 0.7979631475 | I86: =IF(B86<G85,1,0) -> 0 | J86: =IF(B86>H85,1,0) -> 0 | K86: 0 | L86: 0 | M86: =IF(L86=1,0,IF(AND(M85>0,R85<M$2),0,IF(AND(K86=1,K85=0,M85=0),B86,M85))) -> 0.7922 | N86: =IF(AND(M85>0,M86=0),B86-M85,0) -> 0 | O86: =IF(K86=1,0,IF(AND(O85>0,T85<O$2),0,IF(AND(L86=1,L85=0,O85=0),B86,O85))) -> 0 | P86: 0 | Q86: -0.0045 | R86: =IF(M86>0,Q86+R85,0) -> -0.0109 | S86: =IF(O86>0,B86-B87,0) -> 0 | T86: =IF(O86>0,S86+T85,0) -> 0 | U86: =Q86+S86+U85 -> -0.0085 | V86: =U86-MAX(U$14:U86) -> -0.0244 | W86: 21 | X86: 2008-04-24 | Y86: -0.0085 | AQ86: =AVERAGE(B77:B86) -> 0.79118 | AR86: =STDEVP(B77:B86) -> 0.003652615501 | AS86: =AVERAGE(B67:B86) -> 0.79154 | AT86: =STDEVP(B67:B86) -> 0.004587962511 | AU86: 84
A87: 2008-04-25 | B87: 0.7813 | C87: 0.7779 | D87: 0.7888 | E87: 0.79081 | F87: 0.004980853341 | G87: 0.7838368053 | H87: 0.7977831947 | I87: 1 | J87: 0 | K87: 0 | L87: 0 | M87: 0.7922 | N87: 0 | O87: 0 | P87: 0 | Q87: 0.0012 | R87: -0.0097 | S87: 0 | T87: 0 | U87: -0.0073 | V87: =U87-MAX(U$14:U87) -> -0.0232 | W87: 22 | X87: 2008-04-25 | Y87: -0.0073 | AQ87: 0.78999 | AR87: 0.004612905809 | AS87: 0.79081 | AT87: 0.004980853341 | AU87: 85
A88: 2008-04-28 | B88: 0.7825 | C88: 0.7812 | D88: 0.788 | E88: 0.79071 | F88: 0.005124539004 | G88: 0.7835356454 | H88: 0.7978843546 | I88: 1 | J88: 0 | K88: 1 | L88: 0 | M88: 0.7922 | N88: 0 | O88: 0 | P88: 0 | Q88: -0.009 | R88: -0.0187 | S88: 0 | T88: 0 | U88: -0.0163 | V88: =U88-MAX(U$14:U88) -> -0.0322 | W88: 23 | X88: 2008-04-28 | Y88: -0.0163 | AQ88: 0.78926 | AR88: 0.005133458873 | AS88: 0.79071 | AT88: 0.005124539004 | AU88: 86
A89: 2008-04-29 | B89: 0.7735 | C89: 0.7722 | D89: 0.7835 | E89: 0.79006 | F89: 0.00630566412 | G89: 0.7812320702 | H89: 0.7988879298 | I89: 1 | J89: 0 | K89: 1 | L89: 0 | M89: 0.7922 | N89: 0 | O89: 0 | P89: 0 | Q89: 0.0083 | R89: -0.0104 | S89: 0 | T89: 0 | U89: -0.008 | V89: =U89-MAX(U$14:U89) -> -0.0239 | W89: 24 | X89: 2008-04-29 | Y89: -0.008 | AQ89: 0.78811 | AR89: 0.006932019908 | AS89: 0.79006 | AT89: 0.00630566412 | AU89: 87
A90: 2008-04-30 | B90: 0.7818 | C90: 0.7721 | D90: 0.7853 | E90: 0.78971 | F90: 0.006555219295 | G90: 0.780532693 | H90: 0.798887307 | I90: 0 | J90: 0 | K90: 0 | L90: 0 | M90: 0.7922 | N90: 0 | O90: 0 | P90: 0 | Q90: -0.0048 | R90: -0.0152 | S90: 0 | T90: 0 | U90: -0.0128 | V90: =U90-MAX(U$14:U90) -> -0.0287 | W90: 25 | X90: 2008-04-30 | Y90: -0.0128 | AQ90: 0.78719 | AR90: 0.007095977734 | AS90: 0.78971 | AT90: 0.006555219295 | AU90: 88
A91: 2008-05-01 | B91: 0.777 | C91: 0.7737 | D91: 0.7841 | E91: 0.78932 | F91: 0.007049155978 | G91: 0.7794511816 | H91: 0.7991888184 | I91: 1 | J91: 0 | K91: 0 | L91: 0 | M91: 0.7922 | N91: 0 | O91: 0 | P91: 0 | Q91: 0.0039 | R91: -0.0113 | S91: 0 | T91: 0 | U91: -0.0089 | V91: =U91-MAX(U$14:U91) -> -0.0248 | W91: 26 | X91: 2008-05-01 | Y91: -0.0089 | AQ91: 0.78584 | AR91: 0.007603841135 | AS91: 0.78932 | AT91: 0.007049155978 | AU91: 89
A92: 2008-05-02 | B92: 0.7809 | C92: 0.7751 | D92: 0.7844 | E92: 0.788895 | F92: 0.007283850287 | G92: 0.7786976096 | H92: 0.7990923904 | I92: 0 | J92: 0 | K92: 0 | L92: 0 | M92: 0.7922 | N92: 0 | O92: 0 | P92: 0 | Q92: 0.0043 | R92: -0.007 | S92: 0 | T92: 0 | U92: -0.0046 | V92: =U92-MAX(U$14:U92) -> -0.0205 | W92: =IF(V92=0,0,W91+1) -> 27 | X92: 2008-05-02 | Y92: -0.0046 | AQ92: 0.78487 | AR92: 0.007553284054 | AS92: 0.788895 | AT92: 0.007283850287 | AU92: 90
A93: 2008-05-05 | B93: 0.7852 | C93: 0.7786 | D93: 0.7865 | E93: 0.788335 | F93: 0.00711387904 | G93: 0.7783755693 | H93: 0.7982944307 | I93: 0 | J93: 0 | K93: 0 | L93: 0 | M93: 0.7922 | N93: 0 | O93: 0 | P93: 0 | Q93: 0.0044 | R93: -0.0026 | S93: 0 | T93: 0 | U93: -0.0002 | V93: =U93-MAX(U$14:U93) -> -0.0161 | W93: 28 | X93: 2008-05-05 | Y93: -0.0002 | AQ93: 0.78389 | AR93: 0.006770590816 | AS93: 0.788335 | AT93: 0.00711387904 | AU93: 91
A94: 2008-05-06 | B94: 0.7896 | C94: 0.7845 | D94: 0.7938 | E94: 0.787935 | F94: 0.006799652565 | G94: 0.7784154864 | H94: 0.7974545136 | I94: 0 | J94: 0 | K94: 0 | L94: 0 | M94: 0.7922 | N94: 0 | O94: 0 | P94: 0 | Q94: -0.0179 | R94: -0.0205 | S94: 0 | T94: 0 | U94: -0.0181 | V94: =U94-MAX(U$14:U94) -> -0.034 | W94: 29 | X94: 2008-05-06 | Y94: -0.0181 | AQ94: 0.7831 | AR94: 0.005473024758 | AS94: 0.787935 | AT94: 0.006799652565 | AU94: 92
A95: 2008-05-07 | B95: 0.7717 | C95: 0.7713 | D95: 0.7908 | E95: 0.786695 | F95: 0.007362640491 | G95: 0.7763873033 | H95: 0.7970026967 | I95: 1 | J95: 0 | K95: 0 | L95: 0 | M95: 0.7922 | N95: 0 | O95: 0 | P95: 0 | Q95: -0.0001 | R95: -0.0206 | S95: 0 | T95: 0 | U95: -0.0182 | V95: =U95-MAX(U$14:U95) -> -0.0341 | W95: 30 | X95: 2008-05-07 | Y95: -0.0182 | AQ95: 0.78093 | AR95: 0.005256624392 | AS95: 0.786695 | AT95: 0.007362640491 | AU95: 93
A96: 2008-05-08 | B96: 0.7716 | C96: 0.7686 | D96: 0.7754 | E96: 0.785345 | F96: 0.00752944055 | G96: 0.7748037832 | H96: 0.7958862168 | I96: 1 | J96: 0 | K96: 1 | L96: 0 | M96: 0.7922 | N96: 0 | O96: 0 | P96: 0 | Q96: -0.0034 | R96: -0.024 | S96: 0 | T96: 0 | U96: -0.0216 | V96: =U96-MAX(U$14:U96) -> -0.0375 | W96: 31 | X96: 2008-05-08 | Y96: -0.0216 | AQ96: 0.77951 | AR96: 0.0056523358 | AS96: 0.785345 | AT96: 0.00752944055 | AU96: 94
A97: 2008-05-09 | B97: 0.7682 | C97: 0.7646 | D97: 0.775 | E97: 0.784095 | F97: 0.008169606784 | G97: 0.7726575505 | H97: 0.7955324495 | I97: 1 | J97: 0 | K97: 1 | L97: 0 | M97: 0.7922 | N97: 0 | O97: 0 | P97: 0 | Q97: 0.0006 | R97: -0.0234 | S97: 0 | T97: 0 | U97: -0.021 | V97: =U97-MAX(U$14:U97) -> -0.0369 | W97: 32 | X97: 2008-05-09 | Y97: -0.021 | AQ97: 0.7782 | AR97: 0.006534829761 | AS97: 0.784095 | AT97: 0.008169606784 | AU97: 95
A98: 2008-05-12 | B98: 0.7688 | C98: 0.7626 | D98: 0.773 | E98: 0.783045 | F98: 0.008701119181 | G98: 0.7708634331 | H98: 0.7952265669 | I98: 1 | J98: 0 | K98: 1 | L98: 0 | M98: 0.7922 | N98: 0 | O98: 0 | P98: 0 | Q98: -0.0058 | R98: -0.0292 | S98: 0 | T98: 0 | U98: -0.0268 | V98: =U98-MAX(U$14:U98) -> -0.0427 | W98: 33 | X98: 2008-05-12 | Y98: -0.0268 | AQ98: 0.77683 | AR98: 0.006914774038 | AS98: 0.783045 | AT98: 0.008701119181 | AU98: 96
A99: 2008-05-13 | B99: 0.763 | C99: 0.7623 | D99: 0.7712 | E99: 0.781945 | F99: 0.009715887762 | G99: 0.7683427571 | H99: 0.7955472429 | I99: 1 | J99: 0 | K99: 1 | L99: 0 | M99: 0.7922 | N99: 0 | O99: 0 | P99: =IF(AND(O99=0,O98>0),O98-B99,0) -> 0 | Q99: =IF(M99>0,B100-B99,0) -> -0.0066 | R99: -0.0358 | S99: 0 | T99: 0 | U99: -0.0334 | V99: =U99-MAX(U$14:U99) -> -0.0493 | W99: 34 | X99: 2008-05-13 | Y99: -0.0334 | AQ99: 0.77578 | AR99: 0.008045470776 | AS99: 0.781945 | AT99: 0.009715887762 | AU99: 97
A100: 2008-05-14 | B100: 0.7564 | C100: 0.7549 | D100: 0.7645 | E100: 0.780215 | F100: 0.01095140516 | G100: 0.7648830328 | H100: 0.7955469672 | I100: 1 | J100: 0 | K100: 1 | L100: 0 | M100: 0.7922 | N100: 0 | O100: 0 | P100: 0 | Q100: 0.0067 | R100: -0.0291 | S100: 0 | T100: 0 | U100: -0.0267 | V100: =U100-MAX(U$14:U100) -> -0.0426 | W100: 35 | X100: 2008-05-14 | Y100: -0.0267 | AQ100: 0.77324 | AR100: 0.009602728779 | AS100: 0.780215 | AT100: 0.01095140516 | AU100: 98
A101: 2008-05-15 | B101: 0.7631 | C101: 0.7534 | D101: 0.7645 | E101: 0.778845 | F101: 0.01128775775 | G101: 0.7630421392 | H101: 0.7946478608 | I101: 1 | J101: 0 | K101: 1 | L101: 0 | M101: 0.7922 | N101: 0 | O101: 0 | P101: 0 | Q101: 0.0094 | R101: -0.0197 | S101: 0 | T101: 0 | U101: -0.0173 | V101: =U101-MAX(U$14:U101) -> -0.0332 | W101: 36 | X101: 2008-05-15 | Y101: -0.0173 | AQ101: 0.77185 | AR101: 0.009957333981 | AS101: 0.778845 | AT101: 0.01128775775 | AU101: 99
A102: 2008-05-16 | B102: 0.7725 | C102: 0.7617 | D102: 0.7751 | E102: 0.77794 | F102: 0.01103169978 | G102: 0.7624956203 | H102: 0.7933843797 | I102: 0 | J102: 0 | K102: 0 | L102: 0 | M102: 0.7922 | N102: 0 | O102: 0 | P102: 0 | Q102: 0.0004 | R102: -0.0193 | S102: 0 | T102: 0 | U102: -0.0169 | V102: =U102-MAX(U$14:U102) -> -0.0328 | W102: 37 | X102: 2008-05-16 | Y102: -0.0169 | AQ102: 0.77101 | AR102: 0.009502362864 | AS102: 0.77794 | AT102: 0.01103169978 | AU102: 100
A103: 2008-05-19 | B103: 0.7729 | C103: 0.7702 | D103: 0.7775 | E103: 0.776835 | F103: 0.0103535151 | G103: 0.7623400789 | H103: 0.7913299211 | I103: 0 | J103: 0 | K103: 0 | L103: 0 | M103: 0.7922 | N103: 0 | O103: 0 | P103: 0 | Q103: 0.001 | R103: -0.0183 | S103: 0 | T103: 0 | U103: -0.0159 | V103: =U103-MAX(U$14:U103) -> -0.0318 | W103: 38 | X103: 2008-05-19 | Y103: -0.0159 | AQ103: 0.76978 | AR103: 0.008306840555 | AS103: 0.776835 | AT103: 0.0103535151 | AU103: 101
A104: 2008-05-20 | B104: 0.7739 | C104: 0.771 | D104: 0.7774 | E104: 0.775655 | F104: 0.009213114294 | G104: 0.76275664 | H104: 0.78855336 | I104: 0 | J104: 0 | K104: 0 | L104: 0 | M104: 0.7922 | N104: 0 | O104: 0 | P104: 0 | Q104: 0.0034 | R104: -0.0149 | S104: 0 | T104: 0 | U104: -0.0125 | V104: =U104-MAX(U$14:U104) -> -0.0284 | W104: 39 | X104: 2008-05-20 | Y104: -0.0125 | AQ104: 0.76821 | AR104: 0.005380789905 | AS104: 0.775655 | AT104: 0.009213114294 | AU104: 102
A105: 2008-05-21 | B105: 0.7773 | C105: 0.7722 | D105: 0.781 | E105: 0.77485 | F105: 0.008283990584 | G105: 0.7632524132 | H105: 0.7864475868 | I105: 0 | J105: 0 | K105: 0 | L105: 0 | M105: 0.7922 | N105: 0 | O105: 0 | P105: 0 | Q105: 0.0074 | R105: -0.0075 | S105: 0 | T105: 0 | U105: -0.0051 | V105: =U105-MAX(U$14:U105) -> -0.021 | W105: 40 | X105: 2008-05-21 | Y105: -0.0051 | AQ105: 0.76877 | AR105: 0.005973616995 | AS105: 0.77485 | AT105: 0.008283990584 | AU105: 103
A106: 2008-05-22 | B106: 0.7847 | C106: 0.7757 | D106: 0.7896 | E106: 0.774795 | F106: 0.00821446742 | G106: 0.7632947456 | H106: 0.7862952544 | I106: 0 | J106: 0 | K106: 0 | L106: 0 | M106: 0.7922 | N106: 0 | O106: 0 | P106: 0 | Q106: 0.0004 | R106: -0.0071 | S106: 0 | T106: 0 | U106: -0.0047 | V106: =U106-MAX(U$14:U106) -> -0.0206 | W106: 41 | X106: 2008-05-22 | Y106: -0.0047 | AQ106: 0.77008 | AR106: 0.007651378961 | AS106: 0.774795 | AT106: 0.00821446742 | AU106: 104
A107: 2008-05-23 | B107: 0.7851 | C107: 0.7819 | D107: 0.7903 | E107: 0.774985 | F107: 0.00840447946 | G107: 0.7632187288 | H107: 0.7867512712 | I107: 0 | J107: 0 | K107: 0 | L107: 0 | M107: 0.7922 | N107: 0 | O107: 0 | P107: 0 | Q107: 0.0021 | R107: -0.005 | S107: 0 | T107: 0 | U107: -0.0026 | V107: =U107-MAX(U$14:U107) -> -0.0185 | W107: 42 | X107: 2008-05-23 | Y107: -0.0026 | AQ107: 0.77177 | AR107: 0.008825763423 | AS107: 0.774985 | AT107: 0.00840447946 | AU107: 105
A108: 2008-05-26 | B108: 0.7872 | C108: 0.7824 | D108: 0.7883 | E108: 0.77522 | F108: 0.008672750429 | G108: 0.7630781494 | H108: 0.7873618506 | I108: 0 | J108: 1 | K108: 0 | L108: 0 | M108: 0.7922 | N108: 0 | O108: 0 | P108: 0 | Q108: 0.0005 | R108: -0.0045 | S108: 0 | T108: 0 | U108: -0.0021 | V108: =U108-MAX(U$14:U108) -> -0.018 | W108: 43 | X108: 2008-05-26 | Y108: -0.0021 | AQ108: 0.77361 | AR108: 0.009870911812 | AS108: 0.77522 | AT108: 0.008672750429 | AU108: 106
A109: 2008-05-27 | B109: 0.7877 | C109: 0.7858 | D109: 0.7923 | E109: 0.77593 | F109: 0.009074805783 | G109: 0.7632252719 | H109: 0.7886347281 | I109: 0 | J109: 1 | K109: =IF(I108+I109=2,1,0) -> 0 | L109: 1 | M109: 0 | N109: -0.0045 | O109: 0.7877 | P109: 0 | Q109: 0 | R109: 0 | S109: 0.0013 | T109: 0.0013 | U109: -0.0008 | V109: =U109-MAX(U$14:U109) -> -0.0167 | W109: 44 | X109: 2008-05-27 | Y109: -0.0008 | AQ109: 0.77608 | AR109: 0.00999647938 | AS109: 0.77593 | AT109: 0.009074805783 | AU109: 107
A110: 2008-05-28 | B110: 0.7864 | C110: 0.7825 | D110: 0.7908 | E110: 0.77616 | F110: 0.00927671278 | G110: 0.7631726021 | H110: 0.7891473979 | I110: 0 | J110: 0 | K110: 0 | L110: 0 | M110: 0 | N110: 0 | O110: 0.7877 | P110: 0 | Q110: 0 | R110: 0 | S110: 0.0065 | T110: 0.0078 | U110: 0.0057 | V110: =U110-MAX(U$14:U110) -> -0.0102 | W110: 45 | X110: 2008-05-28 | Y110: 0.0057 | AQ110: 0.77908 | AR110: 0.007927773962 | AS110: 0.77616 | AT110: 0.00927671278 | AU110: 108
A111: 2008-05-29 | B111: 0.7799 | C111: 0.7765 | D111: 0.7868 | E111: 0.776305 | F111: 0.009311308984 | G111: 0.7632691674 | H111: 0.7893408326 | I111: 0 | J111: 0 | K111: 0 | L111: 0 | M111: 0 | N111: 0 | O111: 0.7877 | P111: 0 | Q111: 0 | R111: 0 | S111: -0.0042 | T111: 0.0036 | U111: 0.0015 | V111: =U111-MAX(U$14:U111) -> -0.0144 | W111: 46 | X111: 2008-05-29 | Y111: 0.0015 | AQ111: 0.78076 | AR111: 0.005878639298 | AS111: 0.776305 | AT111: 0.009311308984 | AU111: 109
A112: 2008-05-30 | B112: 0.7841 | C112: 0.7782 | D112: 0.7849 | E112: 0.776465 | F112: 0.009415799223 | G112: 0.7632828811 | H112: 0.7896471189 | I112: 0 | J112: 0 | K112: 0 | L112: 0 | M112: 0 | N112: 0 | O112: 0.7877 | P112: 0 | Q112: 0 | R112: 0 | S112: -0.0003 | T112: 0.0033 | U112: 0.0012 | V112: =U112-MAX(U$14:U112) -> -0.0147 | W112: 47 | X112: 2008-05-30 | Y112: 0.0012 | AQ112: 0.78192 | AR112: 0.005244578153 | AS112: 0.776465 | AT112: 0.009415799223 | AU112: 110
A113: 2008-06-02 | B113: 0.7844 | C113: 0.7814 | D113: 0.7868 | E113: 0.776425 | F113: 0.009380238536 | G113: 0.763292666 | H113: 0.789557334 | I113: 0 | J113: 0 | K113: 0 | L113: 0 | M113: 0 | N113: 0 | O113: 0.7877 | P113: 0 | Q113: 0 | R113: 0 | S113: 0.0046 | T113: 0.0079 | U113: 0.0058 | V113: =U113-MAX(U$14:U113) -> -0.0101 | W113: 48 | X113: 2008-06-02 | Y113: 0.0058 | AQ113: 0.78307 | AR113: 0.004319965278 | AS113: 0.776425 | AT113: 0.009380238536 | AU113: 111
A114: 2008-06-03 | B114: 0.7798 | C114: 0.779 | D114: 0.7894 | E114: 0.775935 | F114: 0.008924083987 | G114: 0.7634412824 | H114: 0.7884287176 | I114: 0 | J114: 0 | K114: 0 | L114: 0 | M114: 0 | N114: 0 | O114: 0.7877 | P114: 0 | Q114: 0 | R114: 0 | S114: 0.0108 | T114: 0.0187 | U114: 0.0166 | V114: =U114-MAX(U$14:U114) -> 0 | W114: 0 | X114: 2008-06-03 | Y114: 0.0166 | AQ114: 0.78366 | AR114: 0.003312763197 | AS114: 0.775935 | AT114: 0.008924083987 | AU114: 112
A115: 2008-06-04 | B115: 0.769 | C115: 0.768 | D115: 0.7842 | E115: 0.7758 | F115: 0.009007163816 | G115: 0.7631899707 | H115: 0.7884100293 | I115: 0 | J115: 0 | K115: 0 | L115: 0 | M115: 0 | N115: 0 | O115: 0.7877 | P115: 0 | Q115: 0 | R115: 0 | S115: 0.0033 | T115: 0.022 | U115: 0.0199 | V115: =U115-MAX(U$14:U115) -> 0 | W115: 0 | X115: 2008-06-04 | Y115: 0.0199 | AQ115: 0.78283 | AR115: 0.00526612761 | AS115: 0.7758 | AT115: 0.009007163816 | AU115: 113
A116: 2008-06-05 | B116: 0.7657 | C116: 0.761 | D116: 0.7706 | E116: 0.775505 | F116: 0.009233659892 | G116: 0.7625778762 | H116: 0.7884321238 | I116: 0 | J116: 0 | K116: 0 | L116: 0 | M116: 0 | N116: 0 | O116: 0.7877 | P116: 0 | Q116: 0 | R116: 0 | S116: -0.0019 | T116: 0.0201 | U116: 0.018 | V116: =U116-MAX(U$14:U116) -> -0.0019 | W116: 1 | X116: 2008-06-05 | Y116: 0.018 | AQ116: 0.78093 | AR116: 0.007288079308 | AS116: 0.775505 | AT116: 0.009233659892 | AU116: 114
A117: 2008-06-06 | B117: 0.7676 | C117: 0.7647 | D117: 0.7698 | E117: 0.775475 | F117: 0.009258286829 | G117: 0.7625133984 | H117: 0.7884366016 | I117: 0 | J117: 0 | K117: 0 | L117: 0 | M117: 0 | N117: 0 | O117: 0.7877 | P117: 0 | Q117: 0 | R117: 0 | S117: 0.0088 | T117: 0.0289 | U117: 0.0268 | V117: =U117-MAX(U$14:U117) -> 0 | W117: 0 | X117: 2008-06-06 | Y117: 0.0268 | AQ117: 0.77918 | AR117: 0.008129182001 | AS117: 0.775475 | AT117: 0.009258286829 | AU117: 115
A118: 2008-06-09 | B118: 0.7588 | C118: 0.757 | D118: 0.7706 | E118: 0.774975 | F118: 0.009856007052 | G118: 0.7611765901 | H118: 0.7887734099 | I118: 1 | J118: 0 | K118: 0 | L118: 0 | M118: 0 | N118: 0 | O118: 0.7877 | P118: 0 | Q118: 0 | R118: 0 | S118: 0.0057 | T118: 0.0346 | U118: 0.0325 | V118: =U118-MAX(U$14:U118) -> 0 | W118: 0 | X118: 2008-06-09 | Y118: 0.0325 | AQ118: 0.77634 | AR118: 0.009649891191 | AS118: 0.774975 | AT118: 0.009856007052 | AU118: 116
A119: 2008-06-10 | B119: 0.7531 | C119: 0.7498 | D119: 0.7594 | E119: 0.77448 | F119: 0.01066075044 | G119: 0.7595549494 | H119: 0.7894050506 | I119: 1 | J119: 0 | K119: 1 | L119: 0 | M119: 0.7531 | N119: 0 | O119: 0 | P119: 0.0346 | Q119: 0.0019 | R119: 0.0019 | S119: 0 | T119: 0 | U119: 0.0344 | V119: =U119-MAX(U$14:U119) -> 0 | W119: 0 | X119: 2008-06-10 | Y119: 0.0344 | AQ119: 0.77288 | AR119: 0.01105683499 | AS119: 0.77448 | AT119: 0.01066075044 | AU119: 117
A120: 2008-06-11 | B120: 0.755 | C120: 0.7522 | D120: 0.7582 | E120: 0.77441 | F120: 0.01078313034 | G120: 0.7593136175 | H120: 0.7895063825 | I120: 1 | J120: 0 | K120: 1 | L120: 0 | M120: 0.7531 | N120: 0 | O120: 0 | P120: 0 | Q120: -0.0054 | R120: -0.0035 | S120: 0 | T120: 0 | U120: 0.029 | V120: =U120-MAX(U$14:U120) -> -0.0054 | W120: 1 | X120: 2008-06-11 | Y120: 0.029 | AQ120: 0.76974 | AR120: 0.01122873101 | AS120: 0.77441 | AT120: 0.01078313034 | AU120: 118
A121: 2008-06-12 | B121: 0.7496 | C121: 0.7477 | D121: 0.756 | E121: 0.773735 | F121: 0.01184066193 | G121: 0.7571580733 | H121: 0.7903119267 | I121: 1 | J121: 0 | K121: 1 | L121: 0 | M121: 0.7531 | N121: 0 | O121: 0 | P121: 0 | Q121: -0.0007 | R121: -0.0042 | S121: 0 | T121: 0 | U121: 0.0283 | V121: =U121-MAX(U$14:U121) -> -0.0061 | W121: 2 | X121: 2008-06-12 | Y121: 0.0283 | AQ121: 0.76671 | AR121: 0.01213024732 | AS121: 0.773735 | AT121: 0.01184066193 | AU121: 119
A122: 2008-06-13 | B122: 0.7489 | C122: 0.7443 | D122: 0.7515 | E122: 0.772555 | F122: 0.01302196126 | G122: 0.7543242542 | H122: 0.7907857458 | I122: 1 | J122: 0 | K122: 1 | L122: 0 | M122: 0.7531 | N122: 0 | O122: 0 | P122: 0 | Q122: 0.0045 | R122: 0.0003 | S122: 0 | T122: 0 | U122: 0.0328 | V122: =U122-MAX(U$14:U122) -> -0.0016 | W122: 3 | X122: 2008-06-13 | Y122: 0.0328 | AQ122: 0.76319 | AR122: 0.01167179935 | AS122: 0.772555 | AT122: 0.01302196126 | AU122: 120
A123: 2008-06-16 | B123: 0.7534 | C123: 0.7481 | D123: 0.7544 | E123: 0.77158 | F123: 0.01367335365 | G123: 0.7524373049 | H123: 0.7907226951 | I123: 1 | J123: 0 | K123: 1 | L123: 0 | M123: 0.7531 | N123: 0 | O123: 0 | P123: 0 | Q123: 0.0028 | R123: 0.0031 | S123: 0 | T123: 0 | U123: 0.0356 | V123: =U123-MAX(U$14:U123) -> 0 | W123: 0 | X123: 2008-06-16 | Y123: 0.0356 | AQ123: 0.76009 | AR123: 0.0095508586 | AS123: 0.77158 | AT123: 0.01367335365 | AU123: 121
A124: 2008-06-17 | B124: 0.7562 | C124: 0.7509 | D124: 0.7575 | E124: 0.770695 | F124: 0.01406184465 | G124: 0.7510084175 | H124: 0.7903815825 | I124: 0 | J124: 0 | K124: 0 | L124: 0 | M124: 0.7531 | N124: 0 | O124: 0 | P124: 0 | Q124: 0.0017 | R124: 0.0048 | S124: 0 | T124: 0 | U124: 0.0373 | V124: =U124-MAX(U$14:U124) -> 0 | W124: 0 | X124: 2008-06-17 | Y124: 0.0373 | AQ124: 0.75773 | AR124: 0.006950834482 | AS124: 0.770695 | AT124: 0.01406184465 | AU124: 122
A125: 2008-06-18 | B125: 0.7579 | C125: 0.7532 | D125: 0.7599 | E125: 0.769725 | F125: 0.014240747 | G125: 0.7497879542 | H125: 0.7896620458 | I125: 0 | J125: 0 | K125: 0 | L125: 0 | M125: 0.7531 | N125: 0 | O125: 0 | P125: 0 | Q125: 0.0025 | R125: 0.0073 | S125: 0 | T125: 0 | U125: 0.0398 | V125: =U125-MAX(U$14:U125) -> 0 | W125: 0 | X125: 2008-06-18 | Y125: 0.0398 | AQ125: 0.75662 | AR125: 0.005863753064 | AS125: 0.769725 | AT125: 0.014240747 | AU125: 123
A126: 2008-06-19 | B126: 0.7604 | C126: 0.7563 | D126: 0.7636 | E126: 0.76851 | F126: 0.01394481624 | G126: 0.7489872573 | H126: 0.7880327427 | I126: 0 | J126: 0 | K126: 0 | L126: 0 | M126: 0.7531 | N126: 0 | O126: 0 | P126: 0 | Q126: 0 | R126: 0.0073 | S126: 0 | T126: 0 | U126: 0.0398 | V126: =U126-MAX(U$14:U126) -> 0 | W126: 0 | X126: 2008-06-19 | Y126: 0.0398 | AQ126: 0.75609 | AR126: 0.005223686438 | AS126: 0.76851 | AT126: 0.01394481624 | AU126: 124
A127: 2008-06-20 | B127: 0.7604 | C127: 0.7597 | D127: 0.7649 | E127: 0.767275 | F127: 0.01350777091 | G127: 0.7483641207 | H127: 0.7861858793 | I127: 0 | J127: 0 | K127: 0 | L127: 0 | M127: 0.7531 | N127: 0 | O127: 0 | P127: 0 | Q127: -0.0033 | R127: 0.004 | S127: 0 | T127: 0 | U127: 0.0365 | V127: =U127-MAX(U$14:U127) -> -0.0033 | W127: 1 | X127: 2008-06-20 | Y127: 0.0365 | AQ127: 0.75537 | AR127: 0.003921492063 | AS127: 0.767275 | AT127: 0.01350777091 | AU127: 125
A128: 2008-06-23 | B128: 0.7571 | C128: 0.7553 | D128: 0.764 | E128: 0.76577 | F128: 0.01286550038 | G128: 0.7477582995 | H128: 0.7837817005 | I128: 0 | J128: 0 | K128: 0 | L128: 0 | M128: 0.7531 | N128: 0 | O128: 0 | P128: 0 | Q128: 0.0022 | R128: 0.0062 | S128: 0 | T128: 0 | U128: 0.0387 | V128: =U128-MAX(U$14:U128) -> -0.0011 | W128: 2 | X128: 2008-06-23 | Y128: 0.0387 | AQ128: 0.7552 | AR128: 0.003804208196 | AS128: 0.76577 | AT128: 0.01286550038 | AU128: 126
A129: 2008-06-24 | B129: 0.7593 | C129: 0.7549 | D129: 0.7599 | E129: 0.76435 | F129: 0.01189754176 | G129: 0.7476934415 | H129: 0.7810065585 | I129: 0 | J129: 0 | K129: 0 | L129: 0 | M129: 0.7531 | N129: 0 | O129: 0 | P129: 0 | Q129: -0.0027 | R129: 0.0035 | S129: 0 | T129: 0 | U129: 0.036 | V129: =U129-MAX(U$14:U129) -> -0.0038 | W129: 3 | X129: 2008-06-24 | Y129: 0.036 | AQ129: 0.75582 | AR129: 0.003915047892 | AS129: 0.76435 | AT129: 0.01189754176 | AU129: 127
A130: 2008-06-25 | B130: 0.7566 | C130: 0.7541 | D130: 0.7605 | E130: 0.76286 | F130: 0.01086390353 | G130: 0.7476505351 | H130: 0.7780694649 | I130: 0 | J130: 0 | K130: 0 | L130: 0 | M130: 0.7531 | N130: 0 | O130: 0 | P130: 0 | Q130: -0.0022 | R130: 0.0013 | S130: 0 | T130: 0 | U130: 0.0338 | V130: =U130-MAX(U$14:U130) -> -0.006 | W130: 4 | X130: 2008-06-25 | Y130: 0.0338 | AQ130: 0.75598 | AR130: 0.003910958962 | AS130: 0.76286 | AT130: 0.01086390353 | AU130: 128
A131: 2008-06-26 | B131: 0.7544 | C131: 0.7526 | D131: 0.7588 | E131: 0.761585 | F131: 0.01026933664 | G131: 0.7472079287 | H131: 0.7759620713 | I131: 0 | J131: 0 | K131: 0 | L131: 0 | M131: 0.7531 | N131: 0 | O131: 0 | P131: 0 | Q131: 0.0062 | R131: 0.0075 | S131: 0 | T131: 0 | U131: 0.04 | V131: =U131-MAX(U$14:U131) -> 0 | W131: 0 | X131: =A131 -> 2008-06-26 | Y131: 0.04 | AQ131: 0.75646 | AR131: 0.003353267064 | AS131: 0.761585 | AT131: 0.01026933664 | AU131: 129
A132: 2008-06-27 | B132: 0.7606 | C132: 0.7537 | D132: 0.7635 | E132: 0.76041 | F132: 0.008875860522 | G132: 0.7479837953 | H132: 0.7728362047 | I132: 0 | J132: 0 | K132: 0 | L132: 0 | M132: 0.7531 | N132: 0 | O132: 0 | P132: 0 | Q132: 0.0013 | R132: 0.0088 | S132: 0 | T132: 0 | U132: 0.0413 | V132: =U132-MAX(U$14:U132) -> 0 | W132: 0 | X132: 2008-06-27 | Y132: 0.0413 | AQ132: 0.75763 | AR132: 0.002423654266 | AS132: 0.76041 | AT132: 0.008875860522 | AU132: 130
A133: 2008-06-30 | B133: 0.7619 | C133: 0.7586 | D133: 0.7665 | E133: 0.759285 | F133: 0.006989297175 | G133: 0.749499984 | H133: 0.769070016 | I133: 0 | J133: 0 | K133: 0 | L133: 0 | M133: 0.7531 | N133: 0 | O133: 0 | P133: 0 | Q133: -0.0043 | R133: 0.0045 | S133: 0 | T133: 0 | U133: 0.037 | V133: =U133-MAX(U$14:U133) -> -0.0043 | W133: 1 | X133: 2008-06-30 | Y133: 0.037 | AQ133: 0.75848 | AR133: 0.002277191252 | AS133: 0.759285 | AT133: 0.006989297175 | AU133: =AU132+1 -> 131
A134: 2008-07-01 | B134: 0.7576 | C134: 0.7554 | D134: 0.763 | E134: 0.758175 | F134: 0.00516883691 | G134: 0.7509386283 | H134: 0.7654113717 | I134: 0 | J134: 0 | K134: 0 | L134: 0 | M134: 0.7531 | N134: 0 | O134: 0 | P134: 0 | Q134: 0.0025 | R134: 0.007 | S134: 0 | T134: 0 | U134: 0.0395 | V134: =U134-MAX(U$14:U134) -> -0.0018 | W134: 2 | X134: 2008-07-01 | Y134: 0.0395 | AQ134: 0.75862 | AR134: 0.002173384457 | AS134: 0.758175 | AT134: 0.00516883691 | AU134: 132
A135: 2008-07-02 | B135: 0.7601 | C135: 0.756 | D135: 0.7619 | E135: 0.75773 | F135: 0.004565643438 | G135: 0.7513380992 | H135: 0.7641219008 | I135: 0 | J135: 0 | K135: 0 | L135: 0 | M135: 0.7531 | N135: 0 | O135: 0 | P135: 0 | Q135: -0.0057 | R135: 0.0013 | S135: 0 | T135: 0 | U135: 0.0338 | V135: =U135-MAX(U$14:U135) -> -0.0075 | W135: 3 | X135: 2008-07-02 | Y135: 0.0338 | AQ135: 0.75884 | AR135: 0.002200545387 | AS135: 0.75773 | AT135: 0.004565643438 | AU135: 133
A136: 2008-07-03 | B136: 0.7544 | C136: 0.7541 | D136: 0.7611 | E136: 0.757165 | F136: 0.004231344349 | G136: 0.7512411179 | H136: 0.7630888821 | I136: 0 | J136: 0 | K136: 0 | L136: 0 | M136: 0.7531 | N136: 0 | O136: 0 | P136: 0 | Q136: 0.0057 | R136: 0.007 | S136: 0 | T136: 0 | U136: 0.0395 | V136: =U136-MAX(U$14:U136) -> -0.0018 | W136: 4 | X136: 2008-07-03 | Y136: 0.0395 | AQ136: 0.75824 | AR136: 0.002492067415 | AS136: 0.757165 | AT136: 0.004231344349 | AU136: 134
A137: 2008-07-04 | B137: 0.7601 | C137: 0.7538 | D137: 0.7606 | E137: 0.75679 | F137: 0.003570700211 | G137: 0.7517910197 | H137: 0.7617889803 | I137: 0 | J137: 0 | K137: 0 | L137: 0 | M137: 0.7531 | N137: 0 | O137: 0 | P137: 0 | Q137: -0.0078 | R137: -0.0008 | S137: 0 | T137: 0 | U137: 0.0317 | V137: =U137-MAX(U$14:U137) -> -0.0096 | W137: 5 | X137: 2008-07-04 | Y137: 0.0317 | AQ137: 0.75821 | AR137: 0.002467569655 | AS137: 0.75679 | AT137: 0.003570700211 | AU137: 135
A138: 2008-07-07 | B138: 0.7523 | C138: 0.7499 | D138: 0.7602 | E138: 0.756465 | F138: 0.003667461656 | G138: 0.7513305537 | H138: 0.7615994463 | I138: 0 | J138: 0 | K138: 0 | L138: 0 | M138: 0.7531 | N138: 0 | O138: 0 | P138: 0 | Q138: 0.0001 | R138: -0.0007 | S138: 0 | T138: 0 | U138: 0.0318 | V138: =U138-MAX(U$14:U138) -> -0.0095 | W138: 6 | X138: 2008-07-07 | Y138: 0.0318 | AQ138: 0.75773 | AR138: 0.003037778794 | AS138: 0.756465 | AT138: 0.003667461656 | AU138: 136
A139: 2008-07-08 | B139: 0.7524 | C139: 0.7479 | D139: 0.7541 | E139: 0.75643 | F139: 0.003702580181 | G139: 0.7512463877 | H139: 0.7616136123 | I139: 0 | J139: 0 | K139: 0 | L139: 0 | M139: 0.7531 | N139: 0 | O139: 0 | P139: 0 | Q139: 0.0044 | R139: 0.0037 | S139: 0 | T139: 0 | U139: 0.0362 | V139: =U139-MAX(U$14:U139) -> -0.0051 | W139: 7 | X139: 2008-07-08 | Y139: 0.0362 | AQ139: 0.75704 | AR139: 0.003368441776 | AS139: 0.75643 | AT139: 0.003702580181 | AU139: 137
A140: 2008-07-09 | B140: 0.7568 | C140: 0.7512 | D140: 0.7621 | E140: 0.75652 | F140: 0.003688576961 | G140: 0.7513559923 | H140: 0.7616840077 | I140: 0 | J140: 0 | K140: 0 | L140: 0 | M140: 0.7531 | N140: 0 | O140: 0 | P140: 0 | Q140: 0.0019 | R140: 0.0056 | S140: 0 | T140: 0 | U140: 0.0381 | V140: =U140-MAX(U$14:U140) -> -0.0032 | W140: 8 | X140: 2008-07-09 | Y140: 0.0381 | AQ140: 0.75706 | AR140: 0.003366363023 | AS140: 0.75652 | AT140: 0.003688576961 | AU140: 138
A141: 2008-07-10 | B141: 0.7587 | C141: 0.7535 | D141: 0.7616 | E141: 0.756975 | F141: 0.003352890544 | G141: 0.7522809532 | H141: 0.7616690468 | I141: 0 | J141: 0 | K141: 0 | L141: 0 | M141: 0.7531 | N141: 0 | O141: 0 | P141: 0 | Q141: 0.0022 | R141: 0.0078 | S141: 0 | T141: 0 | U141: 0.0403 | V141: =U141-MAX(U$14:U141) -> -0.001 | W141: 9 | X141: 2008-07-10 | Y141: 0.0403 | AQ141: 0.75749 | AR141: 0.003272445569 | AS141: 0.756975 | AT141: 0.003352890544 | AU141: 139
A142: 2008-07-11 | B142: 0.7609 | C142: 0.7566 | D142: 0.765 | E142: 0.757575 | F142: 0.002896873314 | G142: 0.7535193774 | H142: 0.7616306226 | I142: 0 | J142: 0 | K142: 0 | L142: 0 | M142: 0.7531 | N142: 0 | O142: 0 | P142: 0 | Q142: 0.002 | R142: 0.0098 | S142: 0 | T142: 0 | U142: 0.0423 | V142: =U142-MAX(U$14:U142) -> 0 | W142: 0 | X142: 2008-07-11 | Y142: 0.0423 | AQ142: 0.75752 | AR142: 0.003302059963 | AS142: 0.757575 | AT142: 0.002896873314 | AU142: 140
A143: 2008-07-14 | B143: 0.7629 | C143: 0.7563 | D143: 0.767 | E143: 0.75805 | F143: 0.002951694429 | G143: 0.7539176278 | H143: 0.7621823722 | I143: 0 | J143: 1 | K143: 0 | L143: 0 | M143: 0.7531 | N143: 0 | O143: 0 | P143: 0 | Q143: 0.0089 | R143: 0.0187 | S143: 0 | T143: 0 | U143: 0.0512 | V143: =U143-MAX(U$14:U143) -> 0 | W143: 0 | X143: 2008-07-14 | Y143: =U143 -> 0.0512 | AQ143: 0.75762 | AR143: 0.003445228585 | AS143: 0.75805 | AT143: 0.002951694429 | AU143: 141
A144: 2008-07-15 | B144: 0.7718 | C144: 0.7628 | D144: 0.7762 | E144: 0.75883 | F144: 0.004169664255 | G144: 0.75299247 | H144: 0.76466753 | I144: 0 | J144: 1 | K144: 0 | L144: 1 | M144: 0 | N144: 0.0187 | O144: 0.7718 | P144: 0 | Q144: 0 | R144: 0 | S144: 0.0007 | T144: 0.0007 | U144: 0.0519 | V144: =U144-MAX(U$14:U144) -> 0 | W144: 0 | X144: 2008-07-15 | Y144: 0.0519 | AQ144: 0.75904 | AR144: 0.005473609412 | AS144: 0.75883 | AT144: 0.004169664255 | AU144: 142
A145: 2008-07-16 | B145: 0.7711 | C145: 0.768 | D145: 0.774 | E145: 0.75949 | F145: 0.004943167001 | G145: 0.7525695662 | H145: 0.7664104338 | I145: 0 | J145: 1 | K145: 0 | L145: 1 | M145: 0 | N145: 0 | O145: 0.7718 | P145: 0 | Q145: 0 | R145: 0 | S145: 0.0079 | T145: 0.0086 | U145: 0.0598 | V145: =U145-MAX(U$14:U145) -> 0 | W145: 0 | X145: 2008-07-16 | Y145: 0.0598 | AQ145: 0.76014 | AR145: 0.006571331676 | AS145: 0.75949 | AT145: 0.004943167001 | AU145: 143
A146: 2008-07-17 | B146: 0.7632 | C146: 0.7584 | D146: 0.7729 | E146: 0.75963 | F146: 0.005006206148 | G146: 0.7526213114 | H146: 0.7666386886 | I146: 0 | J146: 0 | K146: 0 | L146: 0 | M146: 0 | N146: 0 | O146: 0.7718 | P146: 0 | Q146: 0 | R146: 0 | S146: 0.0004 | T146: 0.009 | U146: 0.0602 | V146: =U146-MAX(U$14:U146) -> 0 | W146: 0 | X146: 2008-07-17 | Y146: 0.0602 | AQ146: 0.76102 | AR146: 0.00632847533 | AS146: 0.75963 | AT146: 0.005006206148 | AU146: 144
A147: 2008-07-18 | B147: 0.7628 | C147: 0.7605 | D147: 0.7662 | E147: 0.75975 | F147: 0.005051781864 | G147: 0.7526775054 | H147: 0.7668224946 | I147: 0 | J147: 0 | K147: 0 | L147: 0 | M147: 0 | N147: 0 | O147: 0.7718 | P147: 0 | Q147: 0 | R147: 0 | S147: 0.0025 | T147: 0.0115 | U147: 0.0627 | V147: =U147-MAX(U$14:U147) -> 0 | W147: 0 | X147: 2008-07-18 | Y147: 0.0627 | AQ147: 0.76129 | AR147: 0.006341048809 | AS147: 0.75975 | AT147: 0.005051781864 | AU147: 145
A148: 2008-07-21 | B148: 0.7603 | C148: 0.7583 | D148: 0.7636 | E148: 0.75991 | F148: 0.005015864831 | G148: 0.7528877892 | H148: 0.7669322108 | I148: 0 | J148: 0 | K148: 0 | L148: 0 | M148: 0 | N148: 0 | O148: 0.7718 | P148: 0 | Q148: 0 | R148: 0 | S148: 0.0015 | T148: 0.013 | U148: 0.0642 | V148: =U148-MAX(U$14:U148) -> 0 | W148: 0 | X148: 2008-07-21 | Y148: 0.0642 | AQ148: 0.76209 | AR148: 0.005620044484 | AS148: 0.75991 | AT148: 0.005015864831 | AU148: 146
A149: 2008-07-22 | B149: 0.7588 | C149: 0.7568 | D149: 0.7636 | E149: 0.759885 | F149: 0.005020087151 | G149: =E149-G$2*F149 -> 0.752856878 | H149: =E149+H$2*F149 -> 0.766913122 | I149: 0 | J149: 0 | K149: 0 | L149: 0 | M149: 0 | N149: 0 | O149: 0.7718 | P149: 0 | Q149: 0 | R149: 0 | S149: 0.0148 | T149: 0.0278 | U149: 0.079 | V149: =U149-MAX(U$14:U149) -> 0 | W149: 0 | X149: 2008-07-22 | Y149: 0.079 | AQ149: 0.76273 | AR149: 0.004782060225 | AS149: 0.759885 | AT149: 0.005020087151 | AU149: 147
A150: 2008-07-23 | B150: 0.744 | C150: 0.7416 | D150: 0.7597 | E150: 0.759255 | F150: 0.00607301202 | G150: 0.7507527832 | H150: 0.7677572168 | I150: =IF(B150<G149,1,0) -> 1 | J150: =IF(B150>H149,1,0) -> 0 | K150: 0 | L150: 0 | M150: =IF(L150=1,0,IF(AND(M149>0,R149<M$2),0,IF(AND(K150=1,K149=0,M149=0),B150,M149))) -> 0 | N150: =IF(AND(M149>0,M150=0),B150-M149,0) -> 0 | O150: =IF(K150=1,0,IF(AND(O149>0,T149<O$2),0,IF(AND(L150=1,L149=0,O149=0),B150,O149))) -> 0.7718 | P150: 0 | Q150: 0 | R150: =IF(M150>0,Q150+R149,0) -> 0 | S150: =IF(O150>0,B150-B151,0) -> 0.0008 | T150: =IF(O150>0,S150+T149,0) -> 0.0286 | U150: =Q150+S150+U149 -> 0.0798 | V150: =U150-MAX(U$14:U150) -> 0 | W150: 0 | X150: 2008-07-23 | Y150: 0.0798 | AQ150: =AVERAGE(B141:B150) -> 0.76145 | AR150: =STDEVP(B141:B150) -> 0.007265982384 | AS150: =AVERAGE(B131:B150) -> 0.759255 | AT150: =STDEVP(B131:B150) -> 0.00607301202 | AU150: 148
A151: 2008-07-24 | B151: 0.7432 | C151: 0.7383 | D151: 0.7449 | E151: 0.758695 | F151: 0.006948199407 | G151: 0.7489675208 | H151: 0.7684224792 | I151: 1 | J151: 0 | K151: 1 | L151: 0 | M151: 0.7432 | N151: 0 | O151: 0 | P151: 0.0286 | Q151: -0.0016 | R151: -0.0016 | S151: 0 | T151: 0 | U151: 0.0782 | V151: =U151-MAX(U$14:U151) -> -0.0016 | W151: 1 | X151: 2008-07-24 | Y151: 0.0782 | AQ151: 0.7599 | AR151: 0.009107249859 | AS151: 0.758695 | AT151: 0.006948199407 | AU151: 149
A152: 2008-07-25 | B152: 0.7416 | C152: 0.7401 | D152: 0.747 | E152: 0.757745 | F152: 0.00786164582 | G152: 0.7467386959 | H152: 0.7687513041 | I152: 1 | J152: 0 | K152: 1 | L152: 0 | M152: 0.7432 | N152: 0 | O152: 0 | P152: 0 | Q152: 0.0038 | R152: 0.0022 | S152: 0 | T152: 0 | U152: 0.082 | V152: =U152-MAX(U$14:U152) -> 0 | W152: 0 | X152: 2008-07-25 | Y152: 0.082 | AQ152: 0.75797 | AR152: 0.01061160214 | AS152: 0.757745 | AT152: 0.00786164582 | AU152: 150
A153: 2008-07-28 | B153: 0.7454 | C153: 0.7404 | D153: 0.7464 | E153: 0.75692 | F153: 0.008239029069 | G153: 0.7453853593 | H153: 0.7684546407 | I153: 1 | J153: 0 | K153: 1 | L153: 0 | M153: 0.7432 | N153: 0 | O153: 0 | P153: 0 | Q153: -0.007 | R153: -0.0048 | S153: 0 | T153: 0 | U153: 0.075 | V153: =U153-MAX(U$14:U153) -> -0.007 | W153: 1 | X153: 2008-07-28 | Y153: 0.075 | AQ153: 0.75622 | AR153: 0.01108664061 | AS153: 0.75692 | AT153: 0.008239029069 | AU153: 151
A154: 2008-07-29 | B154: 0.7384 | C154: 0.7343 | D154: 0.7469 | E154: 0.75596 | F154: 0.009169863685 | G154: 0.7431221908 | H154: 0.7687978092 | I154: 1 | J154: 0 | K154: 1 | L154: 0 | M154: 0.7432 | N154: 0 | O154: 0 | P154: 0 | Q154: -0.0045 | R154: -0.0093 | S154: 0 | T154: 0 | U154: 0.0705 | V154: =U154-MAX(U$14:U154) -> -0.0115 | W154: 2 | X154: 2008-07-29 | Y154: 0.0705 | AQ154: 0.75288 | AR154: 0.01091968864 | AS154: 0.75596 | AT154: 0.009169863685 | AU154: 152
A155: 2008-07-30 | B155: 0.7339 | C155: 0.7311 | D155: 0.7394 | E155: 0.75465 | F155: 0.01028812422 | G155: 0.7402466261 | H155: 0.7690533739 | I155: 1 | J155: 0 | K155: 1 | L155: 0 | M155: 0.7432 | N155: 0 | O155: 0 | P155: 0 | Q155: -0.0028 | R155: -0.0121 | S155: 0 | T155: 0 | U155: 0.0677 | V155: =U155-MAX(U$14:U155) -> -0.0143 | W155: 3 | X155: 2008-07-30 | Y155: 0.0677 | AQ155: 0.74916 | AR155: 0.01040328794 | AS155: 0.75465 | AT155: 0.01028812422 | AU155: 153
A156: 2008-07-31 | B156: 0.7311 | C156: 0.7303 | D156: 0.7365 | E156: 0.753485 | F156: 0.01149849012 | G156: 0.7373871138 | H156: 0.7695828862 | I156: 1 | J156: 0 | K156: 1 | L156: 0 | M156: 0.7432 | N156: 0 | O156: 0 | P156: 0 | Q156: -0.0038 | R156: -0.0159 | S156: 0 | T156: 0 | U156: 0.0639 | V156: =U156-MAX(U$14:U156) -> -0.0181 | W156: =IF(V156=0,0,W155+1) -> 4 | X156: 2008-07-31 | Y156: 0.0639 | AQ156: 0.74595 | AR156: 0.01052751158 | AS156: 0.753485 | AT156: 0.01149849012 | AU156: 154
A157: 2008-08-01 | B157: 0.7273 | C157: 0.7243 | D157: 0.7317 | E157: 0.751845 | F157: 0.01271300417 | G157: 0.7340467942 | H157: 0.7696432058 | I157: 1 | J157: 0 | K157: 1 | L157: 0 | M157: 0.7432 | N157: 0 | O157: 0 | P157: 0 | Q157: 0.0001 | R157: -0.0158 | S157: 0 | T157: 0 | U157: 0.064 | V157: =U157-MAX(U$14:U157) -> -0.018 | W157: 5 | X157: 2008-08-01 | Y157: 0.064 | AQ157: 0.7424 | AR157: 0.01022819632 | AS157: 0.751845 | AT157: 0.01271300417 | AU157: 155
A158: 2008-08-04 | B158: 0.7274 | C158: 0.7265 | D158: 0.7335 | E158: 0.7506 | F158: 0.01378179959 | G158: 0.7313054806 | H158: 0.7698945194 | I158: 1 | J158: 0 | K158: 1 | L158: 0 | M158: 0.7432 | N158: 0 | O158: 0 | P158: 0 | Q158: -0.0011 | R158: -0.0169 | S158: 0 | T158: 0 | U158: 0.0629 | V158: =U158-MAX(U$14:U158) -> -0.0191 | W158: 6 | X158: 2008-08-04 | Y158: 0.0629 | AQ158: 0.73911 | AR158: 0.009178828901 | AS158: 0.7506 | AT158: 0.01378179959 | AU158: 156
A159: 2008-08-05 | B159: 0.7263 | C159: 0.7216 | D159: 0.7279 | E159: 0.749295 | F159: 0.01475118555 | G159: 0.7286433402 | H159: 0.7699466598 | I159: 1 | J159: 0 | K159: 1 | L159: 0 | M159: 0.7432 | N159: 0 | O159: 0 | P159: 0 | Q159: -0.0054 | R159: -0.0223 | S159: 0 | T159: 0 | U159: 0.0575 | V159: =U159-MAX(U$14:U159) -> -0.0245 | W159: 7 | X159: 2008-08-05 | Y159: 0.0575 | AQ159: 0.73586 | AR159: 0.007164384133 | AS159: 0.749295 | AT159: 0.01475118555 | AU159: 157
A160: 2008-08-06 | B160: 0.7209 | C160: 0.7161 | D160: 0.7272 | E160: 0.7475 | F160: 0.01587050724 | G160: 0.7252812899 | H160: 0.7697187101 | I160: 1 | J160: 0 | K160: 1 | L160: 0 | M160: 0.7432 | N160: 0 | O160: 0 | P160: 0 | Q160: -0.0076 | R160: -0.0299 | S160: 0 | T160: 0 | U160: 0.0499 | V160: =U160-MAX(U$14:U160) -> -0.0321 | W160: 8 | X160: 2008-08-06 | Y160: 0.0499 | AQ160: 0.73355 | AR160: 0.00785789412 | AS160: 0.7475 | AT160: 0.01587050724 | AU160: 158
A161: 2008-08-07 | B161: 0.7133 | C161: 0.7124 | D161: 0.7217 | E161: 0.74523 | F161: 0.01728959514 | G161: 0.7210245668 | H161: 0.7694354332 | I161: 1 | J161: 0 | K161: 1 | L161: 0 | M161: 0.7432 | N161: 0 | O161: 0 | P161: 0 | Q161: -0.0092 | R161: -0.0391 | S161: 0 | T161: 0 | U161: 0.0407 | V161: =U161-MAX(U$14:U161) -> -0.0413 | W161: 9 | X161: 2008-08-07 | Y161: 0.0407 | AQ161: 0.73056 | AR161: 0.009192409913 | AS161: 0.74523 | AT161: 0.01728959514 | AU161: 159
A162: 2008-08-08 | B162: 0.7041 | C162: 0.6979 | D162: 0.7135 | E162: 0.74239 | F162: 0.01905704332 | G162: 0.7157101394 | H162: 0.7690698606 | I162: 1 | J162: 0 | K162: 1 | L162: 0 | M162: 0.7432 | N162: 0 | O162: 0 | P162: 0 | Q162: -0.005 | R162: -0.0441 | S162: 0 | T162: 0 | U162: 0.0357 | V162: =U162-MAX(U$14:U162) -> -0.0463 | W162: 10 | X162: 2008-08-08 | Y162: 0.0357 | AQ162: 0.72681 | AR162: 0.01132532119 | AS162: 0.74239 | AT162: 0.01905704332 | AU162: 160
A163: 2008-08-11 | B163: 0.6991 | C163: 0.6969 | D163: 0.7085 | E163: 0.7392 | F163: 0.02063160197 | G163: 0.7103157572 | H163: 0.7680842428 | I163: 1 | J163: 0 | K163: 1 | L163: 0 | M163: 0.7432 | N163: 0 | O163: 0 | P163: =IF(AND(O163=0,O162>0),O162-B163,0) -> 0 | Q163: =IF(M163>0,B164-B163,0) -> -0.007 | R163: -0.0511 | S163: 0 | T163: 0 | U163: 0.0287 | V163: =U163-MAX(U$14:U163) -> -0.0533 | W163: 11 | X163: 2008-08-11 | Y163: 0.0287 | AQ163: 0.72218 | AR163: 0.01220866905 | AS163: 0.7392 | AT163: 0.02063160197 | AU163: 161
A164: 2008-08-12 | B164: 0.6921 | C164: 0.6909 | D164: 0.7012 | E164: 0.735215 | F164: 0.02162325773 | G164: 0.7049424392 | H164: 0.7654875608 | I164: 1 | J164: 0 | K164: 1 | L164: 0 | M164: 0.7432 | N164: 0 | O164: 0 | P164: 0 | Q164: 0.0069 | R164: -0.0442 | S164: 0 | T164: 0 | U164: 0.0356 | V164: =U164-MAX(U$14:U164) -> -0.0464 | W164: 12 | X164: 2008-08-12 | Y164: 0.0356 | AQ164: 0.71755 | AR164: 0.0138487003 | AS164: 0.735215 | AT164: 0.02162325773 | AU164: 162
A165: 2008-08-13 | B165: 0.699 | C165: 0.6821 | D165: 0.7059 | E165: 0.73161 | F165: 0.02134851049 | G165: 0.7017220853 | H165: 0.7614979147 | I165: 1 | J165: 0 | K165: 1 | L165: 0 | M165: 0.7432 | N165: 0 | O165: 0 | P165: 0 | Q165: -0.0002 | R165: -0.0444 | S165: 0 | T165: 0 | U165: 0.0354 | V165: =U165-MAX(U$14:U165) -> -0.0466 | W165: 13 | X165: 2008-08-13 | Y165: 0.0354 | AQ165: 0.71406 | AR165: 0.01368518907 | AS165: 0.73161 | AT165: 0.02134851049 | AU165: 163
A166: 2008-08-14 | B166: 0.6988 | C166: 0.6958 | D166: 0.7058 | E166: 0.72839 | F166: 0.02119714368 | G166: 0.6987139989 | H166: 0.7580660011 | I166: 1 | J166: 0 | K166: 1 | L166: 0 | M166: 0.7432 | N166: 0 | O166: 0 | P166: 0 | Q166: 0.0075 | R166: -0.0369 | S166: 0 | T166: 0 | U166: 0.0429 | V166: =U166-MAX(U$14:U166) -> -0.0391 | W166: 14 | X166: 2008-08-14 | Y166: 0.0429 | AQ166: 0.71083 | AR166: 0.01308060014 | AS166: 0.72839 | AT166: 0.02119714368 | AU166: 164
A167: 2008-08-15 | B167: 0.7063 | C167: 0.6939 | D167: 0.7079 | E167: 0.725565 | F167: 0.02016269513 | G167: 0.6973372268 | H167: 0.7537927732 | I167: 0 | J167: 0 | K167: 0 | L167: 0 | M167: 0.7432 | N167: 0 | O167: 0 | P167: 0 | Q167: 0.0032 | R167: -0.0337 | S167: 0 | T167: 0 | U167: 0.0461 | V167: =U167-MAX(U$14:U167) -> -0.0359 | W167: 15 | X167: 2008-08-15 | Y167: 0.0461 | AQ167: 0.70873 | AR167: 0.01190034033 | AS167: 0.725565 | AT167: 0.02016269513 | AU167: 165
A168: 2008-08-18 | B168: 0.7095 | C168: 0.7063 | D168: 0.716 | E168: 0.723025 | F168: 0.01877926716 | G168: 0.696734026 | H168: 0.749315974 | I168: 0 | J168: 0 | K168: 0 | L168: 0 | M168: 0.7432 | N168: 0 | O168: 0 | P168: 0 | Q168: 0.0053 | R168: -0.0284 | S168: 0 | T168: 0 | U168: 0.0514 | V168: =U168-MAX(U$14:U168) -> -0.0306 | W168: 16 | X168: 2008-08-18 | Y168: 0.0514 | AQ168: 0.70694 | AR168: 0.01017921412 | AS168: 0.723025 | AT168: 0.01877926716 | AU168: 166
A169: 2008-08-19 | B169: 0.7148 | C169: 0.7035 | D169: 0.7154 | E169: 0.720825 | F169: 0.01694729698 | G169: 0.6970987842 | H169: 0.7445512158 | I169: 0 | J169: 0 | K169: 0 | L169: 0 | M169: 0.7432 | N169: 0 | O169: 0 | P169: 0 | Q169: -0.0021 | R169: -0.0305 | S169: 0 | T169: 0 | U169: 0.0493 | V169: =U169-MAX(U$14:U169) -> -0.0327 | W169: 17 | X169: 2008-08-19 | Y169: 0.0493 | AQ169: 0.70579 | AR169: 0.00842560977 | AS169: 0.720825 | AT169: 0.01694729698 | AU169: 167
A170: 2008-08-20 | B170: 0.7127 | C170: 0.7079 | D170: 0.7162 | E170: 0.71926 | F170: 0.01616194295 | G170: 0.6966332799 | H170: 0.7418867201 | I170: 0 | J170: 0 | K170: 0 | L170: 0 | M170: 0.7432 | N170: 0 | O170: 0 | P170: 0 | Q170: 0.006 | R170: -0.0245 | S170: 0 | T170: 0 | U170: 0.0553 | V170: =U170-MAX(U$14:U170) -> -0.0267 | W170: 18 | X170: 2008-08-20 | Y170: 0.0553 | AQ170: 0.70497 | AR170: 0.007229253073 | AS170: 0.71926 | AT170: 0.01616194295 | AU170: 168
A171: 2008-08-21 | B171: 0.7187 | C171: 0.7098 | D171: 0.7218 | E171: 0.718035 | F171: 0.01520089718 | G171: 0.696753744 | H171: 0.739316256 | I171: 0 | J171: 0 | K171: 0 | L171: 0 | M171: 0.7432 | N171: 0 | O171: 0 | P171: 0 | Q171: -0.0097 | R171: -0.0342 | S171: 0 | T171: 0 | U171: 0.0456 | V171: =U171-MAX(U$14:U171) -> -0.0364 | W171: 19 | X171: 2008-08-21 | Y171: 0.0456 | AQ171: 0.70551 | AR171: 0.007992677899 | AS171: 0.718035 | AT171: 0.01520089718 | AU171: 169
A172: 2008-08-22 | B172: 0.709 | C172: 0.7076 | D172: 0.72 | E172: 0.716405 | F172: 0.01430826597 | G172: 0.6963734276 | H172: 0.7364365724 | I172: 0 | J172: 0 | K172: 0 | L172: 0 | M172: 0.7432 | N172: 0 | O172: 0 | P172: 0 | Q172: -0.0118 | R172: -0.046 | S172: 0 | T172: 0 | U172: 0.0338 | V172: =U172-MAX(U$14:U172) -> -0.0482 | W172: 20 | X172: 2008-08-22 | Y172: 0.0338 | AQ172: 0.706 | AR172: 0.008041268557 | AS172: 0.716405 | AT172: 0.01430826597 | AU172: 170
A173: 2008-08-25 | B173: 0.6972 | C173: 0.6953 | D173: 0.71 | E173: 0.713995 | F173: 0.01324101488 | G173: 0.6954575792 | H173: 0.7325324208 | I173: 0 | J173: 0 | K173: =IF(I172+I173=2,1,0) -> 0 | L173: 0 | M173: 0.7432 | N173: 0 | O173: 0 | P173: 0 | Q173: -0.002 | R173: -0.048 | S173: 0 | T173: 0 | U173: 0.0318 | V173: =U173-MAX(U$14:U173) -> -0.0502 | W173: 21 | X173: 2008-08-25 | Y173: 0.0318 | AQ173: 0.70581 | AR173: 0.008222463135 | AS173: 0.713995 | AT173: 0.01324101488 | AU173: 171
A174: 2008-08-26 | B174: 0.6952 | C174: 0.6894 | D174: 0.699 | E174: 0.711835 | F174: 0.01259131744 | G174: 0.6942071556 | H174: 0.7294628444 | I174: 1 | J174: 0 | K174: 0 | L174: 0 | M174: 0.7432 | N174: 0 | O174: 0 | P174: 0 | Q174: 0.0077 | R174: -0.0403 | S174: 0 | T174: 0 | U174: 0.0395 | V174: =U174-MAX(U$14:U174) -> -0.0425 | W174: 22 | X174: 2008-08-26 | Y174: 0.0395 | AQ174: 0.70612 | AR174: 0.007744262392 | AS174: 0.711835 | AT174: 0.01259131744 | AU174: 172
A175: 2008-08-27 | B175: 0.7029 | C175: 0.6951 | D175: 0.7048 | E175: 0.710285 | F175: 0.01165277971 | G175: 0.6939711084 | H175: 0.7265988916 | I175: 0 | J175: 0 | K175: 0 | L175: 0 | M175: 0.7432 | N175: 0 | O175: 0 | P175: 0 | Q175: -0.0003 | R175: -0.0406 | S175: 0 | T175: 0 | U175: 0.0392 | V175: =U175-MAX(U$14:U175) -> -0.0428 | W175: 23 | X175: 2008-08-27 | Y175: 0.0392 | AQ175: 0.70651 | AR175: 0.007469196744 | AS175: 0.710285 | AT175: 0.01165277971 | AU175: 173
A176: 2008-08-28 | B176: 0.7026 | C176: 0.7001 | D176: 0.7072 | E176: 0.70886 | F176: 0.01072596849 | G176: 0.6938436441 | H176: 0.7238763559 | I176: 0 | J176: 0 | K176: 0 | L176: 0 | M176: 0.7432 | N176: 0 | O176: 0 | P176: 0 | Q176: -0.0008 | R176: -0.0414 | S176: 0 | T176: 0 | U176: 0.0384 | V176: =U176-MAX(U$14:U176) -> -0.0436 | W176: 24 | X176: 2008-08-28 | Y176: 0.0384 | AQ176: 0.70689 | AR176: 0.007157436692 | AS176: 0.70886 | AT176: 0.01072596849 | AU176: 174
A177: 2008-08-29 | B177: 0.7018 | C177: 0.6977 | D177: 0.7069 | E177: 0.707585 | F177: 0.009945414773 | G177: 0.6936614193 | H177: 0.7215085807 | I177: 0 | J177: 0 | K177: 0 | L177: 0 | M177: 0.7432 | N177: 0 | O177: 0 | P177: 0 | Q177: -0.0092 | R177: -0.0506 | S177: 0 | T177: 0 | U177: 0.0292 | V177: =U177-MAX(U$14:U177) -> -0.0528 | W177: 25 | X177: 2008-08-29 | Y177: 0.0292 | AQ177: 0.70644 | AR177: 0.00732 | AS177: 0.707585 | AT177: 0.009945414773 | AU177: 175
A178: 2008-09-01 | B178: 0.6926 | C178: 0.6915 | D178: 0.7019 | E178: 0.705845 | F178: 0.009353046295 | G178: 0.6927507352 | H178: 0.7189392648 | I178: 1 | J178: 0 | K178: 0 | L178: 0 | M178: 0.7432 | N178: 0 | O178: 0 | P178: 0 | Q178: -0.0101 | R178: -0.0607 | S178: 0 | T178: 0 | U178: 0.0191 | V178: =U178-MAX(U$14:U178) -> -0.0629 | W178: 26 | X178: 2008-09-01 | Y178: 0.0191 | AQ178: 0.70475 | AR178: 0.008303282483 | AS178: 0.705845 | AT178: 0.009353046295 | AU178: 176
A179: 2008-09-02 | B179: 0.6825 | C179: 0.6799 | D179: 0.6941 | E179: 0.703655 | F179: 0.009434642283 | G179: 0.6904465008 | H179: 0.7168634992 | I179: 1 | J179: 0 | K179: 1 | L179: 0 | M179: 0.7432 | N179: 0 | O179: 0 | P179: 0 | Q179: 0.002 | R179: -0.0587 | S179: 0 | T179: 0 | U179: 0.0211 | V179: =U179-MAX(U$14:U179) -> -0.0609 | W179: 27 | X179: 2008-09-02 | Y179: 0.0211 | AQ179: 0.70152 | AR179: 0.009895332233 | AS179: 0.703655 | AT179: 0.009434642283 | AU179: 177
A180: 2008-09-03 | B180: 0.6845 | C180: 0.673 | D180: 0.6898 | E180: 0.701835 | F180: 0.009443319067 | G180: 0.6886143533 | H180: 0.7150556467 | I180: 1 | J180: 0 | K180: 1 | L180: 0 | M180: 0.7432 | N180: 0 | O180: 0 | P180: 0 | Q180: -0.0203 | R180: -0.079 | S180: 0 | T180: 0 | U180: 0.0008 | V180: =U180-MAX(U$14:U180) -> -0.0812 | W180: 28 | X180: 2008-09-03 | Y180: 0.0008 | AQ180: 0.6987 | AR180: 0.01031668551 | AS180: 0.701835 | AT180: 0.009443319067 | AU180: 178
A181: 2008-09-04 | B181: 0.6642 | C181: 0.6584 | D181: 0.6882 | E181: 0.69938 | F181: 0.01214070014 | G181: 0.6823830198 | H181: 0.7163769802 | I181: 1 | J181: 0 | K181: 1 | L181: 0 | M181: 0.7432 | N181: 0 | O181: 0 | P181: 0 | Q181: 0.0048 | R181: -0.0742 | S181: 0 | T181: 0 | U181: 0.0056 | V181: =U181-MAX(U$14:U181) -> -0.0764 | W181: 29 | X181: 2008-09-04 | Y181: 0.0056 | AQ181: 0.69325 | AR181: 0.01248024439 | AS181: 0.69938 | AT181: 0.01214070014 | AU181: 179
A182: 2008-09-05 | B182: 0.669 | C182: 0.6613 | D182: 0.6709 | E182: 0.697625 | F182: 0.01376044603 | G182: 0.6783603756 | H182: 0.7168896244 | I182: 1 | J182: 0 | K182: 1 | L182: 0 | M182: 0.7432 | N182: 0 | O182: 0 | P182: 0 | Q182: 0.0014 | R182: -0.0728 | S182: 0 | T182: 0 | U182: 0.007 | V182: =U182-MAX(U$14:U182) -> -0.075 | W182: 30 | X182: 2008-09-05 | Y182: 0.007 | AQ182: 0.68925 | AR182: 0.01318167288 | AS182: 0.697625 | AT182: 0.01376044603 | AU182: 180
A183: 2008-09-08 | B183: 0.6704 | C183: 0.6644 | D183: 0.6842 | E183: 0.69619 | F183: 0.01497470868 | G183: 0.6752254079 | H183: 0.7171545921 | I183: 1 | J183: 0 | K183: 1 | L183: 0 | M183: 0.7432 | N183: 0 | O183: 0 | P183: 0 | Q183: -0.0052 | R183: -0.078 | S183: 0 | T183: 0 | U183: 0.0018 | V183: =U183-MAX(U$14:U183) -> -0.0802 | W183: 31 | X183: 2008-09-08 | Y183: 0.0018 | AQ183: 0.68657 | AR183: 0.01399235863 | AS183: 0.69619 | AT183: 0.01497470868 | AU183: 181
A184: 2008-09-09 | B184: 0.6652 | C184: 0.6602 | D184: 0.679 | E184: 0.694845 | F184: 0.01641997183 | G184: 0.6718570394 | H184: 0.7178329606 | I184: 1 | J184: 0 | K184: 1 | L184: 0 | M184: 0.7432 | N184: 0 | O184: 0 | P184: 0 | Q184: -0.0129 | R184: -0.0909 | S184: 0 | T184: 0 | U184: -0.0111 | V184: =U184-MAX(U$14:U184) -> -0.0931 | W184: 32 | X184: 2008-09-09 | Y184: -0.0111 | AQ184: 0.68357 | AR184: 0.01500020333 | AS184: 0.694845 | AT184: 0.01641997183 | AU184: 182
A185: 2008-09-10 | B185: 0.6523 | C185: 0.6511 | D185: 0.6724 | E185: 0.69251 | F185: 0.0188096757 | G185: 0.666176454 | H185: 0.718843546 | I185: 1 | J185: 0 | K185: 1 | L185: 0 | M185: 0.7432 | N185: 0 | O185: 0 | P185: 0 | Q185: 0.0009 | R185: -0.09 | S185: 0 | T185: 0 | U185: -0.0102 | V185: =U185-MAX(U$14:U185) -> -0.0922 | W185: 33 | X185: 2008-09-10 | Y185: -0.0102 | AQ185: 0.67851 | AR185: 0.01611889885 | AS185: 0.69251 | AT185: 0.0188096757 | AU185: 183
A186: 2008-09-11 | B186: 0.6532 | C186: 0.6433 | D186: 0.6578 | E186: 0.69023 | F186: 0.02058861579 | G186: 0.6614059379 | H186: 0.7190540621 | I186: 1 | J186: 0 | K186: 1 | L186: 0 | M186: 0.7432 | N186: 0 | O186: 0 | P186: 0 | Q186: 0.015 | R186: -0.075 | S186: 0 | T186: 0 | U186: 0.0048 | V186: =U186-MAX(U$14:U186) -> -0.0772 | W186: 34 | X186: 2008-09-11 | Y186: 0.0048 | AQ186: 0.67357 | AR186: 0.01553840725 | AS186: 0.69023 | AT186: 0.02058861579 | AU186: 184
A187: 2008-09-12 | B187: 0.6682 | C187: 0.6521 | D187: 0.6692 | E187: 0.688325 | F187: 0.02077536702 | G187: 0.6592394862 | H187: 0.7174105138 | I187: 0 | J187: 0 | K187: 0 | L187: 0 | M187: 0.7432 | N187: 0 | O187: 0 | P187: 0 | Q187: -0.0135 | R187: -0.0885 | S187: 0 | T187: 0 | U187: -0.0087 | V187: =U187-MAX(U$14:U187) -> -0.0907 | W187: 35 | X187: 2008-09-12 | Y187: -0.0087 | AQ187: 0.67021 | AR187: 0.01238317003 | AS187: 0.688325 | AT187: 0.02077536702 | AU187: 185
A188: 2008-09-15 | B188: 0.6547 | C188: 0.6529 | D188: 0.672 | E188: 0.685585 | F188: 0.02140610369 | G188: 0.6556164548 | H188: 0.7155535452 | I188: 1 | J188: 0 | K188: 0 | L188: 0 | M188: 0.7432 | N188: 0 | O188: 0 | P188: 0 | Q188: 0.0076 | R188: -0.0809 | S188: 0 | T188: 0 | U188: -0.0011 | V188: =U188-MAX(U$14:U188) -> -0.0831 | W188: 36 | X188: 2008-09-15 | Y188: -0.0011 | AQ188: 0.66642 | AR188: 0.01062561057 | AS188: 0.685585 | AT188: 0.02140610369 | AU188: 186
A189: 2008-09-16 | B189: 0.6623 | C189: 0.6482 | D189: 0.6636 | E189: 0.68296 | F189: 0.02087497066 | G189: 0.6537350411 | H189: 0.7121849589 | I189: 0 | J189: 0 | K189: =IF(I188+I189=2,1,0) -> 0 | L189: 0 | M189: 0.7432 | N189: 0 | O189: 0 | P189: 0 | Q189: 0.0009 | R189: -0.08 | S189: 0 | T189: 0 | U189: -0.0002 | V189: =U189-MAX(U$14:U189) -> -0.0822 | W189: 37 | X189: 2008-09-16 | Y189: -0.0002 | AQ189: 0.6644 | AR189: 0.009201304255 | AS189: 0.68296 | AT189: 0.02087497066 | AU189: 187
A190: 2008-09-17 | B190: 0.6632 | C190: 0.6522 | D190: 0.6686 | E190: 0.680485 | F190: 0.02012307817 | G190: 0.6523126906 | H190: 0.7086573094 | I190: 0 | J190: 0 | K190: 0 | L190: 0 | M190: 0.7432 | N190: 0 | O190: 0 | P190: 0 | Q190: 0.0102 | R190: -0.0698 | S190: 0 | T190: 0 | U190: 0.01 | V190: =U190-MAX(U$14:U190) -> -0.072 | W190: 38 | X190: 2008-09-17 | Y190: 0.01 | AQ190: 0.66227 | AR190: 0.006314277473 | AS190: 0.680485 | AT190: 0.02012307817 | AU190: 188
A191: 2008-09-18 | B191: 0.6734 | C191: 0.6631 | D191: 0.6791 | E191: 0.67822 | F191: 0.01814658646 | G191: 0.652814779 | H191: 0.703625221 | I191: 0 | J191: 0 | K191: 0 | L191: 0 | M191: 0.7432 | N191: 0 | O191: 0 | P191: 0 | Q191: 0.0146 | R191: -0.0552 | S191: 0 | T191: 0 | U191: 0.0246 | V191: =U191-MAX(U$14:U191) -> -0.0574 | W191: 39 | X191: 2008-09-18 | Y191: 0.0246 | AQ191: 0.66319 | AR191: 0.007144151454 | AS191: 0.67822 | AT191: 0.01814658646 | AU191: 189
A192: 2008-09-19 | B192: 0.688 | C192: 0.669 | D192: 0.6899 | E192: 0.67717 | F192: 0.01689994379 | G192: 0.6535100787 | H192: 0.7008299213 | I192: 0 | J192: 0 | K192: 0 | L192: 0 | M192: 0.7432 | N192: 0 | O192: 0 | P192: 0 | Q192: 0.0028 | R192: -0.0524 | S192: 0 | T192: 0 | U192: 0.0274 | V192: =U192-MAX(U$14:U192) -> -0.0546 | W192: 40 | X192: 2008-09-19 | Y192: 0.0274 | AQ192: 0.66509 | AR192: 0.01027652179 | AS192: 0.67717 | AT192: 0.01689994379 | AU192: 190
A193: 2008-09-22 | B193: 0.6908 | C193: 0.6811 | D193: 0.6952 | E193: 0.67685 | F193: 0.01657511689 | G193: 0.6536448364 | H193: 0.7000551636 | I193: 0 | J193: 0 | K193: 0 | L193: 0 | M193: 0.7432 | N193: 0 | O193: 0 | P193: 0 | Q193: -0.0087 | R193: -0.0611 | S193: 0 | T193: 0 | U193: 0.0187 | V193: =U193-MAX(U$14:U193) -> -0.0633 | W193: 41 | X193: 2008-09-22 | Y193: 0.0187 | AQ193: 0.66713 | AR193: 0.01283456661 | AS193: 0.67685 | AT193: 0.01657511689 | AU193: 191
A194: 2008-09-23 | B194: 0.6821 | C194: 0.6773 | D194: 0.6921 | E194: 0.676195 | F194: 0.01608873752 | G194: 0.6536707675 | H194: 0.6987192325 | I194: 0 | J194: 0 | K194: 0 | L194: 0 | M194: 0.7432 | N194: 0 | O194: 0 | P194: 0 | Q194: 0.0018 | R194: -0.0593 | S194: 0 | T194: 0 | U194: 0.0205 | V194: =U194-MAX(U$14:U194) -> -0.0615 | W194: 42 | X194: 2008-09-23 | Y194: 0.0205 | AQ194: 0.66882 | AR194: 0.01356125363 | AS194: 0.676195 | AT194: 0.01608873752 | AU194: 192
A195: 2008-09-24 | B195: 0.6839 | C195: 0.6784 | D195: 0.6887 | E195: 0.675245 | F195: 0.01500851342 | G195: 0.6542330812 | H195: 0.6962569188 | I195: 0 | J195: 0 | K195: 0 | L195: 0 | M195: 0.7432 | N195: 0 | O195: 0 | P195: 0 | Q195: 0.0025 | R195: -0.0568 | S195: 0 | T195: 0 | U195: 0.023 | V195: =U195-MAX(U$14:U195) -> -0.059 | W195: 43 | X195: =A195 -> 2008-09-24 | Y195: 0.023 | AQ195: 0.67198 | AR195: 0.01301428446 | AS195: 0.675245 | AT195: 0.01500851342 | AU195: 193
A196: 2008-09-25 | B196: 0.6864 | C196: 0.6791 | D196: 0.6906 | E196: 0.674435 | F196: 0.01390705846 | G196: 0.6549651182 | H196: 0.6939048818 | I196: 0 | J196: 0 | K196: 0 | L196: 0 | M196: 0.7432 | N196: 0 | O196: 0 | P196: 0 | Q196: -0.0001 | R196: -0.0569 | S196: 0 | T196: 0 | U196: 0.0229 | V196: =U196-MAX(U$14:U196) -> -0.0591 | W196: 44 | X196: 2008-09-25 | Y196: 0.0229 | AQ196: 0.6753 | AR196: 0.01199474885 | AS196: 0.674435 | AT196: 0.01390705846 | AU196: 194
A197: 2008-09-26 | B197: 0.6863 | C197: 0.6811 | D197: 0.69 | E197: 0.67366 | F197: 0.01274372002 | G197: 0.655818792 | H197: 0.691501208 | I197: 0 | J197: 0 | K197: 0 | L197: 0 | M197: 0.7432 | N197: 0 | O197: 0 | P197: 0 | Q197: -0.017 | R197: -0.0739 | S197: 0 | T197: 0 | U197: 0.0059 | V197: =U197-MAX(U$14:U197) -> -0.0761 | W197: 45 | X197: 2008-09-26 | Y197: 0.0059 | AQ197: 0.67711 | AR197: 0.01215141556 | AS197: 0.67366 | AT197: 0.01274372002 | AU197: =AU196+1 -> 195
A198: 2008-09-29 | B198: 0.6693 | C198: 0.6637 | D198: 0.689 | E198: 0.672495 | F198: 0.01200247787 | G198: 0.655691531 | H198: 0.689298469 | I198: 0 | J198: 0 | K198: 0 | L198: 0 | M198: 0.7432 | N198: 0 | O198: 0 | P198: 0 | Q198: -0.0006 | R198: -0.0745 | S198: 0 | T198: 0 | U198: 0.0053 | V198: =U198-MAX(U$14:U198) -> -0.0767 | W198: 46 | X198: 2008-09-29 | Y198: 0.0053 | AQ198: 0.67857 | AR198: 0.01006996028 | AS198: 0.672495 | AT198: 0.01200247787 | AU198: 196
A199: 2008-09-30 | B199: 0.6687 | C199: 0.6637 | D199: 0.6795 | E199: 0.671805 | F199: 0.01180247749 | G199: 0.6552815315 | H199: 0.6883284685 | I199: 0 | J199: 0 | K199: 0 | L199: 0 | M199: 0.7432 | N199: 0 | O199: 0 | P199: 0 | Q199: 0.0034 | R199: -0.0711 | S199: 0 | T199: 0 | U199: 0.0087 | V199: =U199-MAX(U$14:U199) -> -0.0733 | W199: 47 | X199: 2008-09-30 | Y199: 0.0087 | AQ199: 0.67921 | AR199: 0.009179591494 | AS199: 0.671805 | AT199: 0.01180247749 | AU199: 197
A200: 2008-10-01 | B200: 0.6721 | C200: 0.6658 | D200: 0.6789 | E200: 0.671185 | F200: 0.0114394176 | G200: 0.6551698154 | H200: 0.6872001846 | I200: 0 | J200: 0 | K200: 0 | L200: 0 | M200: 0.7432 | N200: 0 | O200: 0 | P200: 0 | Q200: -0.0145 | R200: -0.0856 | S200: 0 | T200: 0 | U200: -0.0058 | V200: =U200-MAX(U$14:U200) -> -0.0878 | W200: 48 | X200: 2008-10-01 | Y200: -0.0058 | AQ200: 0.6801 | AR200: 0.007930699843 | AS200: 0.671185 | AT200: 0.0114394176 | AU200: 198
... 918 more rows

Sheet OBCHODOVÁNÍ
C4: 2017-12-26 | D4: dnes - doplnit dnešní datum
C5: pořadí dnes | D5: =SUMIF(GRAF!A3:A3000,C4,GRAF!AU3:AU3000) -> 2607
C6: pořadí včera | D6: =D5-1 -> 2606
C7: =SUMIF(GRAF!AU3:AU3000,D6,GRAF!A3:A3000) -> 2017-12-25 | D7: včerejší datum
C12: =C7 -> 2017-12-25 | D12: včerejší hodnoty
C14: =GRAF!Y1 -> NZDUSD AVER 20D
D15: SELL | F15: BUY
C17: NZDUSD | D17: =SUMIF(GRAF!A3:A3000,OBCHODOVÁNÍ!C$12,GRAF!O3:O3000) -> 0.6934 | F17: =SUMIF(GRAF!A3:A3000,OBCHODOVÁNÍ!C12,GRAF!M3:M3000) -> 0
C22: =C4 -> 2017-12-26 | D22: dnešní hodnoty
C24: =C14 -> NZDUSD AVER 20D
D25: SELL | F25: BUY
C27: NZDUSD | D27: =SUMIF(GRAF!A3:A3000,OBCHODOVÁNÍ!C22,GRAF!O3:O3000) -> 0.6934 | F27: =SUMIF(GRAF!A3:A3000,OBCHODOVÁNÍ!C22,GRAF!M3:M3000) -> 0
